{"text_format":"1","workbook":"xlsx","n_sheets":8,"sheets":["DATOS EMPRESA (1)","DATOS EMPRESA (2)","DATOS PROYECTO","DATOS PROYECTO (2)","DECLARACION RESPONSABLE","BAREMOS","Hoja5","Hoja2"],"not_rendered":{"charts":0,"images":8,"macros":1,"external_links":0,"defined_names":22,"comments":1,"pivot_tables":0},"unopened":[],"bounds":{"document_bytes":16777216,"sheet_cells":100000,"rows_first":2000,"rows_last":500,"rows_between":2000,"halvings":0,"cell_chars":16384,"cell_head_chars":4096},"cells_cut":0,"cells_raw":0,"read":"whole","date_system":"1900"}

{"sheet":"DATOS EMPRESA (1)","index":0,"n_rows":62,"n_cols":15,"rows_kept":62,"cut":false,"hidden":false,"merged":[[61,9,61,13],[61,1,61,8],[54,1,54,8],[27,1,27,5],[28,1,28,5],[41,18,41,28],[47,1,47,11],[47,12,47,14],[48,9,48,11],[48,12,48,14],[31,1,31,14],[51,9,51,11],[44,9,44,14],[43,9,43,14],[43,1,43,7],[29,1,29,5],[30,1,30,5],[39,12,39,14],[37,12,37,14],[60,1,60,14],[58,1,58,8],[58,9,58,11],[58,12,58,14],[57,1,57,8],[57,9,57,11],[57,12,57,14],[23,0,45,0],[28,6,28,8],[56,1,56,8],[55,9,55,11],[23,1,23,14],[24,1,24,5],[49,1,49,8],[49,9,49,11],[49,12,49,14],[44,1,44,7],[50,12,50,14],[52,1,52,8],[52,9,52,11],[53,1,53,8],[52,12,52,14],[36,1,36,11],[36,12,36,14],[51,1,51,8],[6,0,22,0],[19,11,19,12],[19,13,19,14],[8,8,8,14],[18,1,18,4],[16,1,16,5],[14,5,14,14],[20,13,20,14],[22,1,22,14],[15,7,15,14],[48,1,48,8],[27,9,27,11],[26,9,26,11],[32,1,32,5],[41,9,41,14],[39,1,39,11],[26,1,26,5],[27,12,27,14],[47,0,58,0],[50,1,50,8],[50,9,50,11],[28,9,28,11],[28,12,28,14],[24,12,24,14],[17,1,17,6],[18,5,18,14],[17,7,17,14],[19,5,19,10],[21,5,21,10],[13,1,13,14],[15,1,15,6],[25,1,25,5],[25,6,25,8],[25,9,25,11],[25,12,25,14],[24,6,24,8],[26,6,26,8],[26,12,26,14],[24,9,24,11],[27,6,27,8],[37,1,37,11],[56,9,56,11],[29,6,29,8],[29,9,29,11],[51,12,51,14],[33,1,33,14],[54,9,54,11],[54,12,54,14],[45,1,45,7],[42,1,42,7],[53,12,53,14],[30,6,30,14],[45,9,45,14],[42,9,42,14],[40,1,40,7],[41,1,41,7],[32,6,32,8],[35,1,35,14],[56,12,56,14],[40,9,40,14],[55,1,55,8],[29,12,29,14],[55,12,55,14],[53,9,53,11],[4,1,4,2],[19,1,19,4],[9,1,9,7],[20,1,20,4],[21,1,21,4],[20,11,20,12],[6,1,6,14],[12,1,12,14],[20,5,20,10],[9,8,9,14],[7,1,7,14],[11,1,11,14],[16,6,16,14],[14,3,14,4],[14,1,14,2],[4,5,4,6],[4,7,4,14],[4,3,4,4],[8,1,8,7]]}
[]
[]
[]
[]
[null,"NIF/CIF:",null,null,null,"Nombre Entidad:",null,"(Denominación social empresa solicitante)"]
[]
["DATOS GENERALES","SOLICITUD AYUDA 2023"]
[null,"1-Industrias Agroalimentarias"]
[null,"CAPÍTULO",null,null,null,null,null,null,"LÍNEA"]
[null,"Seleccione el capítulo por el que solicita la ayuda",null,null,null,null,null,null,"Seleccione la línea"]
[]
[null,"DESCRIPCIÓN DE LA ACTIVIDAD DE LA EMPRESA:"]
[]
[null,{"$f":"IF($B$10=\"Capítulo 2\",\"Producto y partida fruera ANEXO 1 del TFUE\",\"Producto y partida según ANEXO 1 del TFUE\")","v":"Producto y partida según ANEXO 1 del TFUE"}]
[null,{"$f":"IF(B10=\"Seleccione el capítulo por el que solicita la ayuda\",\"CAPÍTULOS\",IF(B10=\"Capítulo 1\",INDEX(Capitulos,MATCH(ComboDescripcionesProductos,DescriProductos,0)),\"Fuera anexo 1 TFUE\"))","v":"CAPÍTULOS"},null,{"$f":"IF(B10=\"Seleccione el capítulo por el que solicita la ayuda\",\"PARTIDAS\",IF(B10=\"Capítulo 1\",INDEX(PartidasAnexo1,MATCH(ComboDescripcionesProductos,DescriProductos,0)),\"Fuera anexo 1 TFUE\"))","v":"PARTIDAS"},null,"ELIJA UNA OPCIÓN DE LA LISTA DESPLEGABLE (desplacese con las flechas de dirección)"]
[null,"Código CNAE-2009 (a nivel de 4 digitos)"]
[null,"Página web de la empresa:"]
[null,"Año de constitución de la empresa:"]
[null,"Persona de contacto*"]
[null,"Cargo que ocupa",null,null,null,null,null,null,null,null,null,"Teléfono fijo",null,"Teléfono móvil"]
[null,"Correo electrónico"]
[null,"Correo electrónico vinculado DEH"]
[null,"(*) En el caso de que la solicitante carezca de personalidad jurídica, indicar la persona representante ó apoderada"]
["DATOS ESPECIFICOS","DATOS ECONOMICOS DE LOS 3 ULTIMOS EJERCICIOS CERRADOS\n (En nueva empresa datos estimados año + 1)"]
[null,"Concepto/ año datos",null,null,null,null,{"$f":"2020","v":2020},null,null,{"$f":"2021","v":2021},null,null,2022]
[null,"Nº Empleados"]
[null,"Facturación"]
[null,"Activo Total"]
[null,"Cifra Exportaciones"]
[null,"Inmovilizado neto"]
[null,"TAMAÑO DE LA EMPRESA (1)",null,null,null,null,"ELIJA UNA OPCIÓN DE LA LISTA DESPLEGABLE (desplacese con las flechas de dirección)"]
[null,"(1) Con arreglo a la Recomendación 2003/361/CE de la Comisión, de 6 de mayo de 2003"]
[null,"Facturación año 2017:"]
[]
[]
[null,"PANTILLA DISCAPACIDAD"]
[null,"Número de personas con discapacidad igual o superior al 33% en la plantilla en el año 2022 o superior al 2% del total del personal - Según últimas cuentas anuales aprobadas y/o auditadas, o en defecto, informe de vida laboral del 31/03/2022; 30/06/2022; 30/09/2022; 31/12/2022\n"]
[null,"La empresa cuenta con medidas alternativas previstas en el Real Decreto 27/2000, de 14 de enero",null,null,null,null,null,null,null,null,null,null,false]
[]
[null,"IGUALDAD",null,null,null,null,null,null,null,null,null,null,false]
[null,"La empresa cuenta con un Plan de igualdad registrado (empresa obligada por Ley)",null,null,null,null,null,null,false,"(Marcar en caso afirmativo)"]
[null,"La empresa cuenta con un Plan de igualdad (sin obligación legal para la empresa)",null,null,null,null,null,null,false,"(Marcar en caso afirmativo)"]
[null,"La empresa ha aplicado medidas para la vida personal, laboral y familiar u otras medidas de promoción de la igualdad (con documentación que lo respalde)",null,null,null,null,null,null,false,"(Marcar en caso afirmativo)"]
[null,"La empresa ha aprobado o difundido un protocolo o medidas específicas para prevenir y hacer frente al acoso sexual y al acoso por razón de sexo en el trabajo\n",null,null,null,null,null,null,false,"(Marcar en caso afirmativo)"]
[null,"La empresa ha obtenido Distintivo por la aplicación de políticas de igualdad de trato y de oportunidades (ej. Sello reconcilia, distintivo Igualdad en la empresa, etc.)",null,null,null,null,null,null,false,"(Marcar en caso afirmativo)"]
[null,"La empresa cuenta con, al menos, un 30 de nujeres en puestos directivos",null,null,null,null,null,null,false,"(Marcar en caso afirmativo)"]
[]
["DATOS ESPECIFICOS","PROYECTO PROMOVIDO POR MENORES DE 41 AÑOS O CON PARTICIPACIÓN",null,null,null,null,null,null,null,null,null,null,false]
[null,"Nombre apellidos",null,null,null,null,null,null,null,"DNI",null,null,"% Participación"]
[]
[]
[]
[]
[]
[]
[]
[]
[]
[]
[]
[null,"AUTORIZACIÓN"]
[null,"Autorizo al órgano gestor de las ayudas a recabar directamente los certificados telemáticos que acreditan que la solicitante está al corriente en el cumplimiento de sus obligaciones tributarias y frente a la Seguridad Social. Así como a obtener de la Hacienda Foral de Navarra la información fiscal necesaria para tramitar la solicitud de la ayuda y a comprobar el alta en el impuesto de actividades económicas de Navarra.\n",null,null,null,null,null,null,null,"(Marcar en caso afirmativo)",null,null,null,null,false]

{"sheet":"DATOS EMPRESA (2)","index":1,"n_rows":106,"n_cols":20,"rows_kept":106,"cut":false,"hidden":false,"merged":[[66,1,66,7],[8,9,8,11],[8,1,8,4],[8,15,8,17],[5,1,5,19],[20,1,20,16],[19,1,19,16],[14,17,14,18],[19,17,19,18],[6,1,6,7],[8,5,8,7],[21,1,21,16],[20,17,20,18],[8,12,8,13],[8,18,8,19],[10,1,10,19],[12,17,12,18],[11,1,11,16],[21,17,21,18],[11,17,11,18],[13,1,13,16],[14,1,14,16],[15,1,15,16],[16,1,16,16],[12,1,12,16],[13,17,13,18],[17,1,17,16],[18,1,18,16],[15,17,15,18],[16,17,16,18],[17,17,17,18],[18,17,18,18]]}
[]
[]
[]
[]
[]
[null,{"$f":"'DATOS EMPRESA (1)'!H5","v":"(Denominación social empresa solicitante)"}]
[]
[]
[null,"CAPITAL SOCIAL ACTUAL (€)",null,null,null,null,null,null,null,"% SOCIOS NACIONALES ",null,null,null,null,null,"% SOCIOS EXTRANJEROS"]
[]
[null,"COMPOSICIÓN SOCIETARIA / RELACIÓN DE SOCIOS"]
[null,"NOMBRE O RAZÓN SOCIAL",null,null,null,null,null,null,null,null,null,null,null,null,null,null,null,"CIF",null,"%"]
[]
[]
[]
[]
[]
[]
[]
[]
[]
[]
[]
[]
[]
[]
[]
[]
[]
[]
[]
[]
[]
[]
[]
[]
[]
[]
[]
[]
[]
[]
[]
[]
[]
[]
[]
[]
[]
[]
[]
[]
[]
[]
[]
[]
[]
[]
[]
[]
[]
[]
[]
[]
[]
[]
[]
[]
[]
[]
[]
[]
[]
[]
[]
[]
[]
[]
[]
[]
[]
[]
[]
[]
[]
[]
[]
[]
[]
[]
[]
[]
[]
[]
[]
[]
[]
[]
[]
[]
[]
[]
[]
[]
[]
[null,null,null,null,null,null,null,null,null,null,null,null,null,null,false]

{"sheet":"DATOS PROYECTO","index":2,"n_rows":51,"n_cols":9,"rows_kept":51,"cut":false,"hidden":false,"merged":[[5,1,6,4],[5,5,6,8],[27,7,27,8],[23,7,23,8],[24,5,24,6],[26,7,26,8],[25,1,25,4],[23,5,23,6],[27,5,27,6],[24,1,24,4],[22,5,22,6],[21,1,21,4],[35,7,35,8],[30,5,30,6],[30,7,30,8],[31,5,31,6],[26,5,26,6],[21,7,21,8],[22,7,22,8],[22,1,22,4],[31,7,31,8],[25,5,25,6],[21,5,21,6],[24,7,24,8],[34,1,34,4],[29,1,29,8],[32,7,32,8],[4,1,4,8],[38,1,38,8],[43,5,43,6],[16,2,16,4],[18,2,18,4],[14,2,14,4],[15,2,15,4],[12,1,12,8],[8,1,8,8],[9,1,9,2],[11,1,11,8],[9,3,9,6],[9,7,9,8],[23,1,23,4],[27,1,27,4],[20,1,20,8],[33,5,33,6],[33,7,33,8],[45,7,45,8],[26,1,26,4],[30,1,30,4],[42,1,42,4],[41,1,41,4],[39,1,39,4],[31,1,31,4],[35,1,35,4],[40,5,40,6],[40,1,40,4],[32,1,32,4],[32,5,32,6],[33,1,33,4],[35,5,35,6],[13,6,13,8],[17,6,17,8],[17,2,17,4],[10,3,10,4],[10,1,10,2],[13,2,13,4],[14,6,14,8],[15,6,15,8],[16,6,16,8],[46,5,46,6],[46,7,46,8],[42,5,42,6],[41,5,41,6],[46,1,46,4],[45,5,45,6],[44,5,44,6],[43,7,43,8],[44,7,44,8],[5,0,50,0],[25,7,25,8],[34,5,34,6],[34,7,34,8],[43,1,43,4],[49,1,49,4],[49,5,49,8],[45,1,45,4],[44,1,44,4],[50,1,50,4],[50,5,50,8],[39,5,39,6],[39,7,39,8],[41,7,41,8],[42,7,42,8],[40,7,40,8]]}
[]
[]
[]
[]
[null,{"$f":"'DATOS EMPRESA (1)'!H5","v":"(Denominación social empresa solicitante)"}]
["DATOS ESPECÍFICOS","Título proyecto :"]
[]
[]
[null,"LOCALIZACIÓN DEL PROYECTO"]
[null,"Dirección",null,null,null,null,null,"NAVARRA"]
[null,"LOCALIDAD",null,"(Nombre del Municipio)",null,"C.P.",null,"CPROMUN",{"$f":"INDEX(CodsMunicipios,MATCH(ComboMunicipios,Municipios,0))","v":0}]
[]
[null,"AVANCES ESPERADOS\n(De los siguientes aspectos seleccione uno o varios que con la ejecución del proyecto se consigue)"]
[null,false,"Incremento de la capacidad productiva",null,null,false,"Mejoras de la transformación y comercialización"]
[null,false,"Eficiencia en el uso de los inputs y energética",null,null,false,"Incremento del valor añadido del producto"]
[null,false,"Incremento del empleo",null,null,false,"Mejora de la calidad."]
[null,false,"Diversificación de actividades",null,null,false,"La creación de un nuevo establecimiento"]
[null,false,"Protección medio ambiental ",null,null,false,"La ampliación de un establecimiento existente"]
[null,false,"Seguridad laboral"]
[]
[null,"PRESUPUESTO DE LA INVERSIÓN "]
[null,"CONCEPTO",null,null,null,"% DE LA INVERSIÓN",null,"IMPORTE SIN IVA"]
[null,{"$f":"\"Terreno\"","v":"Terreno"},null,null,null,{"$f":"IF(H23=0,\"\",H23/$H$28)","v":""},null,{"$f":"SUMIF('DATOS PROYECTO (2)'!$K$9:'DATOS PROYECTO (2)'!$K$158,\"0\",'DATOS PROYECTO (2)'!$I$9:'DATOS PROYECTO (2)'!$I$158)","v":0}]
[null,{"$f":"\"Edificios\"","v":"Edificios"},null,null,null,{"$f":"IF(H24=0,\"\",H24/$H$28)","v":""},null,{"$f":"SUMIF('DATOS PROYECTO (2)'!$K$9:'DATOS PROYECTO (2)'!$K$158,\"1\",'DATOS PROYECTO (2)'!$I$9:'DATOS PROYECTO (2)'!$I$158)","v":0}]
[null,{"$f":"\"Maquinaria\"","v":"Maquinaria"},null,null,null,{"$f":"IF(H25=0,\"\",H25/$H$28)","v":""},null,{"$f":"SUMIF('DATOS PROYECTO (2)'!$K$9:'DATOS PROYECTO (2)'!$K$158,\"2\",'DATOS PROYECTO (2)'!$I$9:'DATOS PROYECTO (2)'!$I$158)","v":0}]
[null,{"$f":"\"Activos Intangibles\"","v":"Activos Intangibles"},null,null,null,{"$f":"IF(H26=0,\"\",H26/$H$28)","v":""},null,{"$f":"SUMIF('DATOS PROYECTO (2)'!$K$9:'DATOS PROYECTO (2)'!$K$158,\"3\",'DATOS PROYECTO (2)'!$I$9:'DATOS PROYECTO (2)'!$I$158)","v":0}]
[null,"Otras inversiones ",null,null,null,{"$f":"IF(H27=0,\"\",H27/$H$28)","v":""},null,{"$f":"SUMIF('DATOS PROYECTO (2)'!$K$9:'DATOS PROYECTO (2)'!$K$158,\"4\",'DATOS PROYECTO (2)'!$I$9:'DATOS PROYECTO (2)'!$I$158)","v":0}]
[null,"TOTAL DEL PRESUPUESTO DE INVERSIÓN",null,null,null,{"$f":"SUM(F23:G27)","v":0},null,{"$f":"SUM(H23:H27)","v":0}]
[]
[null,"DEL PRESUPUESTO ANTERIOR SON INVERSIONES EN : "]
[null,null,null,null,null,"% DE LA INVERSIÓN",null,"IMPORTE"]
[null,"Sistemas de fabricación avanzada - Industria 4.0",null,null,null,{"$f":"IF(H32=0,\"\",H32/$H$28)","v":""},null,{"$f":"SUMIF('DATOS PROYECTO (2)'!$L$9:'DATOS PROYECTO (2)'!$L$158,\"2\",'DATOS PROYECTO (2)'!$I$9:'DATOS PROYECTO (2)'!$I$158)","v":0}]
[null,"Inversiones I+D",null,null,null,{"$f":"IF(H33=0,\"\",H33/$H$28)","v":""},null,{"$f":"SUMIF('DATOS PROYECTO (2)'!$L$9:'DATOS PROYECTO (2)'!$L$158,\"3\",'DATOS PROYECTO (2)'!$I$9:'DATOS PROYECTO (2)'!$I$158)","v":0}]
[null,"Eficiencia energética",null,null,null,{"$f":"IF(H34=0,\"\",H34/$H$28)","v":""},null,{"$f":"SUMIF('DATOS PROYECTO (2)'!$L$9:'DATOS PROYECTO (2)'!$L$158,\"4\",'DATOS PROYECTO (2)'!$I$9:'DATOS PROYECTO (2)'!$I$158)","v":0}]
[null,"Eficiencia gestión residuos",null,null,null,{"$f":"IF(H35=0,\"\",H35/$H$28)","v":""},null,{"$f":"SUMIF('DATOS PROYECTO (2)'!$L$9:'DATOS PROYECTO (2)'!$L$158,\"5\",'DATOS PROYECTO (2)'!$I$9:'DATOS PROYECTO (2)'!$I$158)","v":0}]
[null,"Eficiencia gestión hídrica",null,null,null,{"$f":"IF(H36=0,\"\",H36/$H$28)","v":""},null,{"$f":"SUMIF('DATOS PROYECTO (2)'!$L$9:'DATOS PROYECTO (2)'!$L$158,\"6\",'DATOS PROYECTO (2)'!$I$9:'DATOS PROYECTO (2)'!$I$158)","v":0}]
[]
[]
[null,"FINANCIACIÓN PREVISTA"]
[null,"CONCEPTO",null,null,null,"% DE LA INVERSIÓN",null,"IMPORTE"]
[null,"* Recursos propios",null,null,{"$f":"E42+E43","v":0},{"$f":"IF(H41=0,\"\",H41/$H$47)","v":""},null,{"$f":"SUM(H42:I43)","v":0}]
[null,"   - Por aportación al Capital",null,null,null,{"$f":"IF(H42=\"\",\"\",H42/$H$47)","v":""}]
[null,"   - Por auto-financiación",null,null,null,{"$f":"IF(H43=\"\",\"\",H43/$H$47)","v":""}]
[null,"* Recursos ajenos L.P.",null,null,{"$f":"E45+E46+#REF!","v":{"$error":"#REF!"}},{"$f":"IF(H44=0,\"\",H44/$H$47)","v":""},null,{"$f":"SUM(H45:I46)","v":0}]
[null,"   - Préstamos, acreedores y otras fuentes.",null,null,null,{"$f":"IF(H45=\"\",\"\",H45/$H$47)","v":""}]
[null,"   - Arrendamiento financiero",null,null,null,{"$f":"IF(H46=\"\",\"\",H46/$H$47)","v":""}]
[null,"TOTALES",null,null,{"$f":"E41+E44+#REF!","v":{"$error":"#REF!"}},{"$f":"IF(H45=0,\"\",H45/$H$45)","v":""},null,{"$f":"H42+H43+H45+H46","v":0}]
[]
[]
[null,"Fecha de inicio"]
[null,"Fecha de finalización"]

{"sheet":"DATOS PROYECTO (2)","index":3,"n_rows":159,"n_cols":12,"rows_kept":159,"cut":false,"hidden":false,"merged":[[11,5,11,6],[5,1,5,8],[9,5,9,6],[30,2,30,4],[30,5,30,6],[21,5,21,6],[23,5,23,6],[9,2,9,4],[21,2,21,4],[20,5,20,6],[8,5,8,6],[16,5,16,6],[11,2,11,4],[7,7,7,8],[10,2,10,4],[7,1,7,4],[10,5,10,6],[12,2,12,4],[6,1,6,8],[18,5,18,6],[8,2,8,4],[18,2,18,4],[7,5,7,6],[12,5,12,6],[17,5,17,6],[24,5,24,6],[27,2,27,4],[27,5,27,6],[13,2,13,4],[14,2,14,4],[14,5,14,6],[19,5,19,6],[16,2,16,4],[31,5,31,6],[17,2,17,4],[28,5,28,6],[26,2,26,4],[25,2,25,4],[15,5,15,6],[13,5,13,6],[37,5,37,6],[33,2,33,4],[34,2,34,4],[34,5,34,6],[33,5,33,6],[15,2,15,4],[29,5,29,6],[23,2,23,4],[19,2,19,4],[29,2,29,4],[25,5,25,6],[28,2,28,4],[24,2,24,4],[26,5,26,6],[22,2,22,4],[20,2,20,4],[22,5,22,6],[36,5,36,6],[37,2,37,4],[35,2,35,4],[35,5,35,6],[31,2,31,4],[32,2,32,4],[32,5,32,6],[38,2,38,4],[38,5,38,6],[36,2,36,4],[71,5,71,6],[71,2,71,4],[39,2,39,4],[40,2,40,4],[39,5,39,6],[40,5,40,6],[41,2,41,4],[41,5,41,6],[42,2,42,4],[42,5,42,6],[59,5,59,6],[59,2,59,4],[63,5,63,6],[63,2,63,4],[66,5,66,6],[66,2,66,4],[65,5,65,6],[65,2,65,4],[64,5,64,6],[64,2,64,4],[54,5,54,6],[75,5,75,6],[75,2,75,4],[74,5,74,6],[74,2,74,4],[72,2,72,4],[73,5,73,6],[73,2,73,4],[67,5,67,6],[67,2,67,4],[70,5,70,6],[70,2,70,4],[69,5,69,6],[69,2,69,4],[68,5,68,6],[68,2,68,4],[46,5,46,6],[46,2,46,4],[49,5,49,6],[49,2,49,4],[48,5,48,6],[48,2,48,4],[47,5,47,6],[47,2,47,4],[50,5,50,6],[50,2,50,4],[52,5,52,6],[52,2,52,4],[84,2,84,4],[84,5,84,6],[51,5,51,6],[51,2,51,4],[56,5,56,6],[56,2,56,4],[55,5,55,6],[55,2,55,4],[54,2,54,4],[53,5,53,6],[53,2,53,4],[62,5,62,6],[62,2,62,4],[61,5,61,6],[61,2,61,4],[60,5,60,6],[60,2,60,4],[58,5,58,6],[58,2,58,4],[57,5,57,6],[57,2,57,4],[72,5,72,6],[43,5,43,6],[43,2,43,4],[77,2,77,4],[77,5,77,6],[45,5,45,6],[45,2,45,4],[44,5,44,6],[44,2,44,4],[89,2,89,4],[89,5,89,6],[86,2,86,4],[86,5,86,6],[81,2,81,4],[81,5,81,6],[82,2,82,4],[82,5,82,6],[83,2,83,4],[83,5,83,6],[80,2,80,4],[80,5,80,6],[78,2,78,4],[78,5,78,6],[79,2,79,4],[79,5,79,6],[94,2,94,4],[94,5,94,6],[85,2,85,4],[85,5,85,6],[92,2,92,4],[92,5,92,6],[87,2,87,4],[87,5,87,6],[88,2,88,4],[88,5,88,6],[90,2,90,4],[90,5,90,6],[91,2,91,4],[91,5,91,6],[93,2,93,4],[93,5,93,6],[108,2,108,4],[108,5,108,6],[102,2,102,4],[102,5,102,6],[103,2,103,4],[103,5,103,6],[104,2,104,4],[104,5,104,6],[99,2,99,4],[99,5,99,6],[100,2,100,4],[100,5,100,6],[101,2,101,4],[101,5,101,6],[105,2,105,4],[105,5,105,6],[106,2,106,4],[106,5,106,6],[107,2,107,4],[107,5,107,6],[95,2,95,4],[95,5,95,6],[96,2,96,4],[96,5,96,6],[97,2,97,4],[97,5,97,6],[98,2,98,4],[98,5,98,6],[118,2,118,4],[118,5,118,6],[109,2,109,4],[109,5,109,6],[116,2,116,4],[116,5,116,6],[111,2,111,4],[111,5,111,6],[112,2,112,4],[112,5,112,6],[114,2,114,4],[114,5,114,6],[115,2,115,4],[115,5,115,6],[117,2,117,4],[117,5,117,6],[113,2,113,4],[113,5,113,6],[110,2,110,4],[110,5,110,6],[132,2,132,4],[132,5,132,6],[126,2,126,4],[126,5,126,6],[127,2,127,4],[127,5,127,6],[128,2,128,4],[128,5,128,6],[123,2,123,4],[123,5,123,6],[124,2,124,4],[124,5,124,6],[125,2,125,4],[125,5,125,6],[129,2,129,4],[129,5,129,6],[130,2,130,4],[130,5,130,6],[131,2,131,4],[131,5,131,6],[119,2,119,4],[119,5,119,6],[120,2,120,4],[120,5,120,6],[121,2,121,4],[121,5,121,6],[122,2,122,4],[122,5,122,6],[147,2,147,4],[147,5,147,6],[133,2,133,4],[133,5,133,6],[138,5,138,6],[139,2,139,4],[139,5,139,6],[136,2,136,4],[136,5,136,6],[137,2,137,4],[146,2,146,4],[146,5,146,6],[142,2,142,4],[142,5,142,6],[143,2,143,4],[143,5,143,6],[137,5,137,6],[135,2,135,4],[134,2,134,4],[134,5,134,6],[151,2,151,4],[151,5,151,6],[150,2,150,4],[150,5,150,6],[157,2,157,4],[157,5,157,6],[155,5,155,6],[152,2,152,4],[152,5,152,6],[158,1,158,6],[158,7,158,8],[4,1,4,8],[76,5,76,6],[145,5,145,6],[144,2,144,4],[144,5,144,6],[140,2,140,4],[140,5,140,6],[141,2,141,4],[135,5,135,6],[141,5,141,6],[138,2,138,4],[156,2,156,4],[156,5,156,6],[153,2,153,4],[153,5,153,6],[154,2,154,4],[154,5,154,6],[155,2,155,4],[148,2,148,4],[148,5,148,6],[149,2,149,4],[149,5,149,6]]}
[]
[]
[]
[]
[null,{"$f":"'DATOS EMPRESA (1)'!H5","v":"(Denominación social empresa solicitante)"}]
[null,"Edificios:\n• La obra civil relativa a la edificación, incluidas instalaciones de saneamiento y fontanería, así como los costes de control de calidad y gestión de residuos.\n• La obra civil relativa a urbanizaciones exteriores, incluyendo en ella viales, vallados, áreas de estacionamiento, etc.\n• La obra civil relativa a la construcción de instalaciones especiales (cerramientos de cámaras frigoríficas, silos, depuradoras, bases para instalación de maquinaria y equipos, instalaciones de protección contra incendios, pozos y captaciones de agua para uso industrial u otras)\n• Los gastos generales y el beneficio industrial de los proyectos de obra civil, con un límite del 17 % en el caso de los gastos generales y un 6% en el caso del beneficio industrial, sobre el presupuesto del proyecto o memoria técnica valorada. \n• Seguridad y salud relacionado con el proyecto de obra civil.\n\nMaquinaria y equipamiento:\n• Maquinaria y otros bienes de equipo (incluidos equipos informáticos), e instalaciones productivas específicas, así como las instalaciones de calefacción, refrigeración / frío industrial, aire acondicionado, aire comprimido y placas solares de autoconsumo. Igualmente se incluyen los gastos relativos a costes necesarios para la acometida e instalación de suministros de electricidad y/o gas, con independencia de la titularidad final de dicha acometida.\n• Seguridad y salud relacionada con la inversión de maquinaria o equipamiento, en el supuesto que la inversión no contemple la ejecución de obra civil.\n\nActivos intangibles: \n• Adquisición o desarrollo de programas informáticos y adquisición de patentes, licencias y derechos de autoría y marcas registradas.\n\nOtras inversiones:\n\n• Gastos vinculados a edificios y maquinaria tales como honorarios de empresas de arquitectura e ingeniería, así como tributos relacionados con las inversiones de obra civil (Honorarios de redacción y dirección de obra, honorarios de tasación, honorarios de asesoría técnica, gastos de estudios geodésicos y tributos abonados por licencias de actividad, de obra y de apertura)  \n"]
[null,"DESCRIPCION DE LOS ELEMENTOS DE INVERSIÓN "]
[null,"ELEMENTOS O UNIDADES DE INVERSIÓN",null,null,null,"CONCEPTO(1)",null,"IMPORTE SIN IVA"]
[null,1,null,null,null,null,null,null,null,null,{"$f":"INDEX(TiposInverAgroCod1,MATCH(F9,TiposInverAgro,0))","v":{"$error":"#N/A"}},{"$f":"INDEX(TiposInverAgroCod2,MATCH(F9,TiposInverAgro,0))","v":{"$error":"#N/A"}}]
[null,{"$f":"1+B9","v":2},null,null,null,null,null,null,null,null,{"$error":"#N/A"},{"$error":"#N/A"}]
[null,{"$f":"1+B10","v":3},null,null,null,null,null,null,null,null,{"$error":"#N/A"},{"$error":"#N/A"}]
[null,4,null,null,null,null,null,null,null,null,{"$error":"#N/A"},{"$error":"#N/A"}]
[null,5,null,null,null,null,null,null,null,null,{"$error":"#N/A"},{"$error":"#N/A"}]
[null,6,null,null,null,null,null,null,null,null,{"$error":"#N/A"},{"$error":"#N/A"}]
[null,7,null,null,null,null,null,null,null,null,{"$error":"#N/A"},{"$error":"#N/A"}]
[null,8,null,null,null,null,null,null,null,null,{"$error":"#N/A"},{"$error":"#N/A"}]
[null,9,null,null,null,null,null,null,null,null,{"$error":"#N/A"},{"$error":"#N/A"}]
[null,10,null,null,null,null,null,null,null,null,{"$error":"#N/A"},{"$error":"#N/A"}]
[null,11,null,null,null,null,null,null,null,null,{"$error":"#N/A"},{"$error":"#N/A"}]
[null,12,null,null,null,null,null,null,null,null,{"$error":"#N/A"},{"$error":"#N/A"}]
[null,13,null,null,null,null,null,null,null,null,{"$error":"#N/A"},{"$error":"#N/A"}]
[null,14,null,null,null,null,null,null,null,null,{"$error":"#N/A"},{"$error":"#N/A"}]
[null,15,null,null,null,null,null,null,null,null,{"$error":"#N/A"},{"$error":"#N/A"}]
[null,16,null,null,null,null,null,null,null,null,{"$error":"#N/A"},{"$error":"#N/A"}]
[null,17,null,null,null,null,null,null,null,null,{"$error":"#N/A"},{"$error":"#N/A"}]
[null,18,null,null,null,null,null,null,null,null,{"$error":"#N/A"},{"$error":"#N/A"}]
[null,19,null,null,null,null,null,null,null,null,{"$error":"#N/A"},{"$error":"#N/A"}]
[null,20,null,null,null,null,null,null,null,null,{"$error":"#N/A"},{"$error":"#N/A"}]
[null,21,null,null,null,null,null,null,null,null,{"$error":"#N/A"},{"$error":"#N/A"}]
[null,22,null,null,null,null,null,null,null,null,{"$error":"#N/A"},{"$error":"#N/A"}]
[null,23,null,null,null,null,null,null,null,null,{"$error":"#N/A"},{"$error":"#N/A"}]
[null,24,null,null,null,null,null,null,null,null,{"$error":"#N/A"},{"$error":"#N/A"}]
[null,25,null,null,null,null,null,null,null,null,{"$error":"#N/A"},{"$error":"#N/A"}]
[null,26,null,null,null,null,null,null,null,null,{"$error":"#N/A"},{"$error":"#N/A"}]
[null,27,null,null,null,null,null,null,null,null,{"$error":"#N/A"},{"$error":"#N/A"}]
[null,28,null,null,null,null,null,null,null,null,{"$error":"#N/A"},{"$error":"#N/A"}]
[null,{"$f":"1+B36","v":29},null,null,null,null,null,null,null,null,{"$error":"#N/A"},{"$error":"#N/A"}]
[null,30,null,null,null,null,null,null,null,null,{"$error":"#N/A"},{"$error":"#N/A"}]
[null,31,null,null,null,null,null,null,null,null,{"$error":"#N/A"},{"$error":"#N/A"}]
[null,32,null,null,null,null,null,null,null,null,{"$error":"#N/A"},{"$error":"#N/A"}]
[null,33,null,null,null,null,null,null,null,null,{"$f":"INDEX(TiposInverAgroCod1,MATCH(F41,TiposInverAgro,0))","v":{"$error":"#N/A"}},{"$f":"INDEX(TiposInverAgroCod2,MATCH(F41,TiposInverAgro,0))","v":{"$error":"#N/A"}}]
[null,34,null,null,null,null,null,null,null,null,{"$error":"#N/A"},{"$error":"#N/A"}]
[null,{"$f":"1+B42","v":35},null,null,null,null,null,null,null,null,{"$error":"#N/A"},{"$error":"#N/A"}]
[null,{"$f":"1+B43","v":36},null,null,null,null,null,null,null,null,{"$error":"#N/A"},{"$error":"#N/A"}]
[null,{"$f":"1+B44","v":37},null,null,null,null,null,null,null,null,{"$error":"#N/A"},{"$error":"#N/A"}]
[null,38,null,null,null,null,null,null,null,null,{"$error":"#N/A"},{"$error":"#N/A"}]
[null,39,null,null,null,null,null,null,null,null,{"$error":"#N/A"},{"$error":"#N/A"}]
[null,40,null,null,null,null,null,null,null,null,{"$error":"#N/A"},{"$error":"#N/A"}]
[null,41,null,null,null,null,null,null,null,null,{"$error":"#N/A"},{"$error":"#N/A"}]
[null,42,null,null,null,null,null,null,null,null,{"$error":"#N/A"},{"$error":"#N/A"}]
[null,43,null,null,null,null,null,null,null,null,{"$error":"#N/A"},{"$error":"#N/A"}]
[null,44,null,null,null,null,null,null,null,null,{"$error":"#N/A"},{"$error":"#N/A"}]
[null,45,null,null,null,null,null,null,null,null,{"$error":"#N/A"},{"$error":"#N/A"}]
[null,46,null,null,null,null,null,null,null,null,{"$error":"#N/A"},{"$error":"#N/A"}]
[null,47,null,null,null,null,null,null,null,null,{"$error":"#N/A"},{"$error":"#N/A"}]
[null,48,null,null,null,null,null,null,null,null,{"$error":"#N/A"},{"$error":"#N/A"}]
[null,49,null,null,null,null,null,null,null,null,{"$error":"#N/A"},{"$error":"#N/A"}]
[null,50,null,null,null,null,null,null,null,null,{"$error":"#N/A"},{"$error":"#N/A"}]
[null,51,null,null,null,null,null,null,null,null,{"$error":"#N/A"},{"$error":"#N/A"}]
[null,52,null,null,null,null,null,null,null,null,{"$error":"#N/A"},{"$error":"#N/A"}]
[null,53,null,null,null,null,null,null,null,null,{"$error":"#N/A"},{"$error":"#N/A"}]
[null,54,null,null,null,null,null,null,null,null,{"$error":"#N/A"},{"$error":"#N/A"}]
[null,55,null,null,null,null,null,null,null,null,{"$error":"#N/A"},{"$error":"#N/A"}]
[null,56,null,null,null,null,null,null,null,null,{"$error":"#N/A"},{"$error":"#N/A"}]
[null,57,null,null,null,null,null,null,null,null,{"$error":"#N/A"},{"$error":"#N/A"}]
[null,58,null,null,null,null,null,null,null,null,{"$error":"#N/A"},{"$error":"#N/A"}]
[null,59,null,null,null,null,null,null,null,null,{"$error":"#N/A"},{"$error":"#N/A"}]
[null,60,null,null,null,null,null,null,null,null,{"$error":"#N/A"},{"$error":"#N/A"}]
[null,61,null,null,null,null,null,null,null,null,{"$error":"#N/A"},{"$error":"#N/A"}]
[null,62,null,null,null,null,null,null,null,null,{"$error":"#N/A"},{"$error":"#N/A"}]
[null,63,null,null,null,null,null,null,null,null,{"$error":"#N/A"},{"$error":"#N/A"}]
[null,64,null,null,null,null,null,null,null,null,{"$error":"#N/A"},{"$error":"#N/A"}]
[null,65,null,null,null,null,null,null,null,null,{"$f":"INDEX(TiposInverAgroCod1,MATCH(F73,TiposInverAgro,0))","v":{"$error":"#N/A"}},{"$f":"INDEX(TiposInverAgroCod2,MATCH(F73,TiposInverAgro,0))","v":{"$error":"#N/A"}}]
[null,66,null,null,null,null,null,null,null,null,{"$error":"#N/A"},{"$error":"#N/A"}]
[null,67,null,null,null,null,null,null,null,null,{"$error":"#N/A"},{"$error":"#N/A"}]
[null,68,null,null,null,null,null,null,null,null,{"$error":"#N/A"},{"$error":"#N/A"}]
[null,69,null,null,null,null,null,null,null,null,{"$error":"#N/A"},{"$error":"#N/A"}]
[null,{"$f":"1+B77","v":70},null,null,null,null,null,null,null,null,{"$error":"#N/A"},{"$error":"#N/A"}]
[null,{"$f":"1+B78","v":71},null,null,null,null,null,null,null,null,{"$error":"#N/A"},{"$error":"#N/A"}]
[null,{"$f":"1+B79","v":72},null,null,null,null,null,null,null,null,{"$error":"#N/A"},{"$error":"#N/A"}]
[null,73,null,null,null,null,null,null,null,null,{"$error":"#N/A"},{"$error":"#N/A"}]
[null,74,null,null,null,null,null,null,null,null,{"$error":"#N/A"},{"$error":"#N/A"}]
[null,75,null,null,null,null,null,null,null,null,{"$error":"#N/A"},{"$error":"#N/A"}]
[null,76,null,null,null,null,null,null,null,null,{"$error":"#N/A"},{"$error":"#N/A"}]
[null,77,null,null,null,null,null,null,null,null,{"$error":"#N/A"},{"$error":"#N/A"}]
[null,78,null,null,null,null,null,null,null,null,{"$error":"#N/A"},{"$error":"#N/A"}]
[null,79,null,null,null,null,null,null,null,null,{"$error":"#N/A"},{"$error":"#N/A"}]
[null,80,null,null,null,null,null,null,null,null,{"$error":"#N/A"},{"$error":"#N/A"}]
[null,81,null,null,null,null,null,null,null,null,{"$error":"#N/A"},{"$error":"#N/A"}]
[null,82,null,null,null,null,null,null,null,null,{"$error":"#N/A"},{"$error":"#N/A"}]
[null,83,null,null,null,null,null,null,null,null,{"$error":"#N/A"},{"$error":"#N/A"}]
[null,84,null,null,null,null,null,null,null,null,{"$error":"#N/A"},{"$error":"#N/A"}]
[null,85,null,null,null,null,null,null,null,null,{"$error":"#N/A"},{"$error":"#N/A"}]
[null,86,null,null,null,null,null,null,null,null,{"$error":"#N/A"},{"$error":"#N/A"}]
[null,87,null,null,null,null,null,null,null,null,{"$error":"#N/A"},{"$error":"#N/A"}]
[null,88,null,null,null,null,null,null,null,null,{"$error":"#N/A"},{"$error":"#N/A"}]
[null,89,null,null,null,null,null,null,null,null,{"$error":"#N/A"},{"$error":"#N/A"}]
[null,90,null,null,null,null,null,null,null,null,{"$error":"#N/A"},{"$error":"#N/A"}]
[null,91,null,null,null,null,null,null,null,null,{"$error":"#N/A"},{"$error":"#N/A"}]
[null,92,null,null,null,null,null,null,null,null,{"$error":"#N/A"},{"$error":"#N/A"}]
[null,93,null,null,null,null,null,null,null,null,{"$error":"#N/A"},{"$error":"#N/A"}]
[null,94,null,null,null,null,null,null,null,null,{"$error":"#N/A"},{"$error":"#N/A"}]
[null,95,null,null,null,null,null,null,null,null,{"$error":"#N/A"},{"$error":"#N/A"}]
[null,96,null,null,null,null,null,null,null,null,{"$error":"#N/A"},{"$error":"#N/A"}]
[null,97,null,null,null,null,null,null,null,null,{"$f":"INDEX(TiposInverAgroCod1,MATCH(F105,TiposInverAgro,0))","v":{"$error":"#N/A"}},{"$f":"INDEX(TiposInverAgroCod2,MATCH(F105,TiposInverAgro,0))","v":{"$error":"#N/A"}}]
[null,98,null,null,null,null,null,null,null,null,{"$error":"#N/A"},{"$error":"#N/A"}]
[null,99,null,null,null,null,null,null,null,null,{"$error":"#N/A"},{"$error":"#N/A"}]
[null,100,null,null,null,null,null,null,null,null,{"$error":"#N/A"},{"$error":"#N/A"}]
[null,101,null,null,null,null,null,null,null,null,{"$error":"#N/A"},{"$error":"#N/A"}]
[null,{"$f":"1+B109","v":102},null,null,null,null,null,null,null,null,{"$error":"#N/A"},{"$error":"#N/A"}]
[null,{"$f":"1+B110","v":103},null,null,null,null,null,null,null,null,{"$error":"#N/A"},{"$error":"#N/A"}]
[null,{"$f":"1+B111","v":104},null,null,null,null,null,null,null,null,{"$error":"#N/A"},{"$error":"#N/A"}]
[null,{"$f":"1+B112","v":105},null,null,null,null,null,null,null,null,{"$error":"#N/A"},{"$error":"#N/A"}]
[null,{"$f":"1+B113","v":106},null,null,null,null,null,null,null,null,{"$error":"#N/A"},{"$error":"#N/A"}]
[null,107,null,null,null,null,null,null,null,null,{"$error":"#N/A"},{"$error":"#N/A"}]
[null,108,null,null,null,null,null,null,null,null,{"$error":"#N/A"},{"$error":"#N/A"}]
[null,109,null,null,null,null,null,null,null,null,{"$error":"#N/A"},{"$error":"#N/A"}]
[null,110,null,null,null,null,null,null,null,null,{"$error":"#N/A"},{"$error":"#N/A"}]
[null,111,null,null,null,null,null,null,null,null,{"$error":"#N/A"},{"$error":"#N/A"}]
[null,112,null,null,null,null,null,null,null,null,{"$error":"#N/A"},{"$error":"#N/A"}]
[null,113,null,null,null,null,null,null,null,null,{"$error":"#N/A"},{"$error":"#N/A"}]
[null,114,null,null,null,null,null,null,null,null,{"$error":"#N/A"},{"$error":"#N/A"}]
[null,115,null,null,null,null,null,null,null,null,{"$error":"#N/A"},{"$error":"#N/A"}]
[null,116,null,null,null,null,null,null,null,null,{"$error":"#N/A"},{"$error":"#N/A"}]
[null,117,null,null,null,null,null,null,null,null,{"$error":"#N/A"},{"$error":"#N/A"}]
[null,118,null,null,null,null,null,null,null,null,{"$error":"#N/A"},{"$error":"#N/A"}]
[null,119,null,null,null,null,null,null,null,null,{"$error":"#N/A"},{"$error":"#N/A"}]
[null,120,null,null,null,null,null,null,null,null,{"$error":"#N/A"},{"$error":"#N/A"}]
[null,121,null,null,null,null,null,null,null,null,{"$error":"#N/A"},{"$error":"#N/A"}]
[null,122,null,null,null,null,null,null,null,null,{"$error":"#N/A"},{"$error":"#N/A"}]
[null,123,null,null,null,null,null,null,null,null,{"$error":"#N/A"},{"$error":"#N/A"}]
[null,124,null,null,null,null,null,null,null,null,{"$error":"#N/A"},{"$error":"#N/A"}]
[null,125,null,null,null,null,null,null,null,null,{"$error":"#N/A"},{"$error":"#N/A"}]
[null,126,null,null,null,null,null,null,null,null,{"$error":"#N/A"},{"$error":"#N/A"}]
[null,127,null,null,null,null,null,null,null,null,{"$error":"#N/A"},{"$error":"#N/A"}]
[null,128,null,null,null,null,null,null,null,null,{"$error":"#N/A"},{"$error":"#N/A"}]
[null,129,null,null,null,null,null,null,null,null,{"$f":"INDEX(TiposInverAgroCod1,MATCH(F137,TiposInverAgro,0))","v":{"$error":"#N/A"}},{"$f":"INDEX(TiposInverAgroCod2,MATCH(F137,TiposInverAgro,0))","v":{"$error":"#N/A"}}]
[null,130,null,null,null,null,null,null,null,null,{"$error":"#N/A"},{"$error":"#N/A"}]
[null,131,null,null,null,null,null,null,null,null,{"$error":"#N/A"},{"$error":"#N/A"}]
[null,132,null,null,null,null,null,null,null,null,{"$error":"#N/A"},{"$error":"#N/A"}]
[null,133,null,null,null,null,null,null,null,null,{"$error":"#N/A"},{"$error":"#N/A"}]
[null,134,null,null,null,null,null,null,null,null,{"$error":"#N/A"},{"$error":"#N/A"}]
[null,135,null,null,null,null,null,null,null,null,{"$error":"#N/A"},{"$error":"#N/A"}]
[null,136,null,null,null,null,null,null,null,null,{"$error":"#N/A"},{"$error":"#N/A"}]
[null,137,null,null,null,null,null,null,null,null,{"$error":"#N/A"},{"$error":"#N/A"}]
[null,138,null,null,null,null,null,null,null,null,{"$error":"#N/A"},{"$error":"#N/A"}]
[null,{"$f":"1+B146","v":139},null,null,null,null,null,null,null,null,{"$error":"#N/A"},{"$error":"#N/A"}]
[null,{"$f":"1+B147","v":140},null,null,null,null,null,null,null,null,{"$error":"#N/A"},{"$error":"#N/A"}]
[null,{"$f":"1+B148","v":141},null,null,null,null,null,null,null,null,{"$error":"#N/A"},{"$error":"#N/A"}]
[null,142,null,null,null,null,null,null,null,null,{"$error":"#N/A"},{"$error":"#N/A"}]
[null,143,null,null,null,null,null,null,null,null,{"$error":"#N/A"},{"$error":"#N/A"}]
[null,144,null,null,null,null,null,null,null,null,{"$error":"#N/A"},{"$error":"#N/A"}]
[null,145,null,null,null,null,null,null,null,null,{"$error":"#N/A"},{"$error":"#N/A"}]
[null,146,null,null,null,null,null,null,null,null,{"$error":"#N/A"},{"$error":"#N/A"}]
[null,147,null,null,null,null,null,null,null,null,{"$error":"#N/A"},{"$error":"#N/A"}]
[null,148,null,null,null,null,null,null,null,null,{"$error":"#N/A"},{"$error":"#N/A"}]
[null,149,null,null,null,null,null,null,null,null,{"$error":"#N/A"},{"$error":"#N/A"}]
[null,150,null,null,null,null,null,null,null,null,{"$error":"#N/A"},{"$error":"#N/A"}]
[null,"TOTAL IMPORTE",null,null,null,null,null,{"$f":"SUM(I9:I158)","v":0}]

{"sheet":"DECLARACION RESPONSABLE","index":4,"n_rows":44,"n_cols":12,"rows_kept":44,"cut":false,"hidden":true,"merged":[[33,3,33,4],[34,3,34,4],[37,3,37,4],[37,5,37,7],[39,3,39,4],[36,3,36,4],[35,5,35,7],[20,2,20,9],[23,2,23,9],[31,3,31,4],[43,2,43,9],[36,5,36,7],[34,5,34,7],[33,5,33,7],[42,2,42,9],[40,3,40,4],[40,5,40,7],[38,3,38,4],[35,3,35,4],[32,3,32,4],[32,5,32,7],[38,5,38,7],[39,5,39,7],[15,2,15,9],[18,2,18,9],[31,5,31,7],[28,3,28,4],[24,2,24,9],[25,2,25,9],[28,5,28,7],[29,3,29,4],[16,7,16,9],[17,7,17,9],[19,2,19,9],[30,5,30,7],[29,5,29,7],[30,3,30,4],[21,2,21,9],[22,2,22,9],[5,2,5,9],[6,2,6,9],[13,2,13,9],[14,2,14,9],[9,2,9,11],[11,2,11,9]]}
[]
[]
[]
[]
[]
[null,null,"DECLARACIÓN RESPONSABLE SOLICITUD DE AYUDAS"]
[null,null,"CONVOCATORIA DEL AÑO 2022 DE AYUDAS A LA INVERSION EN PYMES INDUSTRIALES "]
[]
[]
[null,null,{"$f":"'DATOS EMPRESA (1)'!H5","v":"(Denominación social empresa solicitante)"}]
[]
[null,null,"La persona firmante, en nombre y representación de la empresa, DECLARA que: "]
[]
[null,null,"1º.  Son ciertos los datos consignados en el formulario de solicitud que determinan la intensidad de ayuda. (Base 2.1.a)",null,null,null,null,null,null,null,false,"(Marcar en caso afirmativo)"]
[null,null,"2º.  La empresa dispone o va a disponer de un establecimiento en Navarra. (Base 2.1.b)",null,null,null,null,null,null,null,false,"(Marcar en caso afirmativo)"]
[null,null,"3º.  Está inscrita en el Registro Industrial de Navarra, conforme a lo establecido en el artículo 3 de la Orden Foral 152/2013, de 30 de abril, de la Consejera de Economía, Hacienda, Industria y Empleo, por la que se crea el Registro Industrial de Navarra (base 2.1.c)."]
[null,null,null,"SI  ",false,"NO",false,"(por no proceder la inscripción conforme al art. 3 de la citada Orden Foral)"]
[null,null,null,null,null,"NO",false," (se inscribirá al iniciar la actividad)   "]
[null,null,"4º.  No concurre en la entidad ninguna de las circunstancias señaladas en el apartado 2 del artículo 13 de la Ley Foral 11/2005, de 9 de noviembre, de Subvenciones (base 2.1.d.).",null,null,null,null,null,null,null,false,"(Marcar en caso afirmativo)"]
[null,null,"5º.  No está sujeta a una orden de recuperación pendiente tras una decisión previa de la Comisión que haya declarado una ayuda concedida por España ilegal e incompatible con el mercado interior (base 2.5.a).",null,null,null,null,null,null,null,false,"(Marcar en caso afirmativo)"]
[null,null,"6º.  No se halla en crisis, de acuerdo con la definición 18 del artículo 2 del Reglamento (UE) Nº 651/2014 de la Comisión (base 2.5.b.).",null,null,null,null,null,false,null,false,"(Marcar en caso afirmativo)"]
[null,null,"7º.  No está cumpliendo sanciones administrativas firmes o una sentencia firme condenatoria, por ejercer o tolerar prácticas laborales consideradas discriminatorias por razón de sexo o de género o, en su caso, estén pendientes de cumplimiento de sanción o sentencia impuesta por dichos motivos. (Base 2.5.c)",null,null,null,null,null,null,null,false,"(Marcar en caso afirmativo)"]
[null,null,"8º. Cumple las normas nacionales y comunitarias sobre medio ambiente y desarrollo sostenible.",null,null,null,null,null,null,null,false,"(Marcar en caso afirmativo)"]
[null,null,"9º.  Dispone de Dirección Electrónica Habilitada (DEH) y está suscrita a los procedimientos de notificación electrónica del Gobierno de Navarra.  (Base 9.2)",null,null,null,null,null,null,null,false,"(Marcar en caso afirmativo)"]
[null,null,"10º.    No ha iniciado ninguna de las inversiones incluidas en el proyecto de inversión antes de presentar la solicitud de ayudas. (Base 6.3)",null,null,null,null,null,null,null,false,"(Marcar en caso afirmativo)"]
[null,null," 11º. Ha solicitado u obtenido otras ayudas para las mismas inversiones subvencionables (Base 17):"]
[null,null,null,null,"SI",false,"NO",false]
[]
[null,null,null,"ENTIDAD",null,"CONCEPTO",null,null,"CUANTIA CONCEDIDA €"]
[]
[]
[]
[]
[]
[]
[]
[]
[null,null,"     ",null,null,"     ",null,null,"      "]
[null,null,"     ",null,null,"     ",null,null,"      "]
[]
[null,null,"     ",null,null,"     "]
[]
[null,null,"Asimismo, declara su compromiso de comunicar, en el plazo máximo de 15 días, la obtención de cualquier ayuda para dicho proyecto. ",null,null,null,null,null,null,null,false,"(Marcar en caso afirmativo)"]
[null,null,"El Departamento de Desarrollo Económico y Empresarial podrá investigar la veracidad de los datos declarados, y en caso de falsedad exigir el reintegro de la subvención concedida más los intereses de demora correspondientes, así como instruir un expediente sancionador por la comisión de una infracción clasificada como muy grave. "]

{"sheet":"BAREMOS","index":5,"n_rows":106,"n_cols":16,"rows_kept":106,"cut":false,"hidden":false,"merged":[[32,2,32,5],[29,4,29,10],[40,12,40,17],[40,4,40,10],[41,4,41,10],[32,6,32,17],[15,5,15,7],[28,4,28,10],[34,2,38,3],[36,10,36,17],[37,10,37,17],[38,10,38,17],[35,4,35,8],[34,10,34,17],[35,10,35,17],[30,12,30,17],[34,4,34,8],[26,4,26,10],[26,12,26,17],[27,4,27,10],[27,12,27,17],[21,12,21,17],[21,4,21,10],[25,4,25,17],[25,2,30,3],[22,4,22,10],[23,4,23,10],[22,12,22,17],[23,12,23,17],[21,2,23,3],[30,4,30,10],[29,12,29,17],[28,12,28,17],[4,2,4,17],[9,5,9,7],[12,4,12,5],[11,2,13,3],[12,6,12,8],[13,6,13,8],[13,4,13,5],[18,5,18,7],[19,2,19,3],[19,5,19,7],[11,5,11,8],[9,2,9,3],[6,2,6,17],[8,5,8,7],[16,2,16,3],[16,5,16,7],[46,2,46,3],[46,4,46,10],[46,12,46,17],[36,4,36,8],[37,4,37,8],[38,4,38,8],[43,2,44,3],[43,4,44,5],[43,6,44,11],[43,12,44,17],[40,2,41,3],[41,12,41,17],[48,2,48,17],[89,5,89,7],[90,5,90,7],[50,2,50,5],[50,6,50,17],[52,2,52,5],[52,11,52,13],[86,7,86,9],[87,7,87,9],[85,2,87,3],[86,4,86,5],[87,4,87,5],[54,4,54,17],[59,4,59,17],[85,7,85,9],[84,7,84,9],[84,2,84,5],[82,12,82,17],[78,5,78,7],[79,2,79,3],[66,12,66,17],[67,4,67,10],[67,12,67,17],[68,4,68,10],[71,2,72,3],[81,2,82,3],[81,4,81,10],[81,12,81,17],[82,4,82,10],[79,5,79,7],[73,2,74,3],[105,6,105,8],[76,2,76,5],[76,6,76,17],[74,4,74,8],[74,10,74,17],[102,9,102,11],[90,12,90,17],[90,8,90,10],[89,2,90,3],[89,8,89,17],[104,2,105,3],[104,4,104,5],[73,4,73,8],[55,11,55,13],[55,7,55,10],[55,4,55,6],[56,4,56,6],[73,10,73,17],[105,9,105,11],[71,4,71,8],[71,10,71,17],[72,4,72,8],[72,10,72,17],[54,2,61,3],[65,2,69,3],[65,4,65,17],[66,4,66,10],[57,4,57,6],[58,4,58,6],[60,4,60,17],[56,7,56,10],[57,7,57,10],[58,7,58,10],[56,11,56,13],[57,11,57,13],[58,11,58,13],[56,14,56,17],[57,14,57,17],[58,14,58,17],[61,14,61,17],[61,4,61,13],[68,12,68,17],[69,4,69,10],[69,12,69,17],[104,6,104,8],[104,9,104,11],[105,4,105,5],[92,2,94,3],[97,12,97,14],[96,12,96,17],[98,12,98,14],[92,5,92,7],[93,5,93,7],[97,15,97,17],[98,15,98,17],[101,2,102,3],[96,2,99,3],[101,4,101,5],[94,4,94,10],[94,12,94,17],[101,6,101,8],[101,9,101,11],[102,4,102,5],[102,6,102,8],[99,12,99,14],[85,4,85,5],[99,15,99,17],[98,10,98,11],[99,10,99,11],[96,4,97,9],[98,4,98,9],[99,4,99,9],[96,10,96,11],[97,10,97,11],[92,8,93,17]]}
[]
[]
[]
[]
[null,null,{"$f":"'DATOS EMPRESA (1)'!H5","v":"(Denominación social empresa solicitante)"}]
[]
[null,null,"BAREMO CAPÍTULO 1 - LINEA A"]
[]
[null,null,null,null,"% ","Importe"]
[null,null,"INVERSIÓN USO EFICIENTE ENERGÍA",null,{"$f":"'DATOS PROYECTO'!F34","v":""},{"$f":"'DATOS PROYECTO'!H34","v":0}]
[]
[null,null,"ENERGÍA VERDE\n(Autoconsumo, PPA…etc.)",null,false,"(Marcar en caso afirmativo)"]
[null,null,null,null,"Total energía verde"]
[null,null,null,null,"Total energía consumida"]
[]
[null,null,null,null,"% ","Importe"]
[null,null,"% INVERSIÓN GESTIÓN EFICIENTE DE RECURSOS HÍDRICOS",null,{"$f":"'DATOS PROYECTO'!F36","v":""},{"$f":"'DATOS PROYECTO'!H36","v":0}]
[]
[null,null,null,null,"% ","Importe"]
[null,null,"% INVERSIÓN GESTIÓN EFICIENTE DE RESIDUOS",null,{"$f":"'DATOS PROYECTO'!F35","v":""},{"$f":"'DATOS PROYECTO'!H35","v":0}]
[]
[null,null,"ORIGEN MATERIA PRIMA",null,"Autoproducción",null,null,null,null,null,null,false,"(Marcar en caso afirmativo)"]
[null,null,null,null,"Producción 100 km máximo",null,null,null,null,null,null,false,"(Marcar en caso afirmativo)"]
[null,null,null,null,"Pyme DO IGP (incompatible con producción calidad)",null,null,null,null,null,null,false,"(Marcar en caso afirmativo)"]
[]
[null,null,"PRODUCCIÓN CALIDAD",null,"Certificados de inscripción vigentes durante el plazo de solicitud"]
[null,null,null,null,"Empresas con ISO 14001 o EQUIVALENTE (EMAS, ISO 14046, ISO 50001…)",null,null,null,null,null,null,false,"(Marcar en caso afirmativo)"]
[null,null,null,null,"Certificado Calidad y/o SG alimentaria (Menos iso14001) - ISO, IFS, BRC, EUREPGAP",null,null,null,null,null,null,false,"(Marcar en caso afirmativo)"]
[null,null,null,null,"PYME ecológica",null,null,null,null,null,null,false,"(Marcar en caso afirmativo)"]
[null,null,null,null,"Empresas artesanas",null,null,null,null,null,null,false,"(Marcar en caso afirmativo)"]
[]
[]
[null,null,"UBICACIÓN ESTABLECIMIENTO Y DESPOBLACIÓN",null,null,null,{"$f":"'DATOS PROYECTO'!D11 & \" \" & 'DATOS PROYECTO'!H10","v":"(Nombre del Municipio) NAVARRA"}]
[]
[null,null,"ASOCIACIONISMO Y ATP",null,"Entidad asociativa y EAI",null,null,null,null,false,"(Elegir opción)"]
[null,null,null,null,"EAPIC mediante acuerdos intercooperativos a partir del 1 de enero de 2021 (EAPIC-AI)",null,null,null,null,false,"(Marcar en caso afirmativo)"]
[null,null,null,null,"EAPIC mediante fusión - absorción a partir del 1 de enero de 2021 (EAPIC-FAI)",null,null,null,null,false,"(Elegir opción)"]
[null,null,null,null,"ATP Personas físicas o EA con ATP igual o más del50%",null,null,null,null,false,"(Marcar en caso afirmativo)"]
[null,null,null,null,"SAT",null,null,null,null,false,"(Marcar en caso afirmativo)"]
[]
[null,null,"NUEVA PLANTA PRODUCTIVA",null,"Nuevas plantas productivas de empresas radicadas en Navarra (base 2.8.b) o segunda fase de la construcción de una nueva planta productiva (base 2.8.c)",null,null,null,null,null,null,false,"(Marcar en caso afirmativo)"]
[null,null,null,null,"Nueva empresa en Navarra (base 2.8.a)",null,null,null,null,null,null,false,"(Marcar en caso afirmativo)"]
[]
[null,null,"ORIGEN ELECTRICIDAD",null,"NOMBRE COMERCIALIZADORA Comisión nacional de valores 2022 ",null,null,null,null,null,null,null,"https://gdo.cnmc.es/CNE/accesoEtiquetado.do"]
[]
[]
[null,null,"PLAN DESCARBONIZACIÓN",null,"HA REALIZADO O ESTÁ REALIZANDO plan de descarbonización - Contenido mínimo anexo II Res 140E/2023 BON 121 - de 8 de junio 2023",null,null,null,null,null,null,false,"(Marcar en caso afirmativo)"]
[]
[null,null,"BAREMO CAPÍTULO 1 - LINEA B ; BAREMO CAPÍTULO 2 - LINEA B"]
[]
[null,null,"TAMAÑO EMPRESA",null,null,null,{"$f":"IF('DATOS EMPRESA (1)'!G31=\"ELIJA UNA OPCIÓN DE LA LISTA DESPLEGABLE (desplacese con las flechas de dirección)\",\"\",'DATOS EMPRESA (1)'!G31)","v":""}]
[]
[null,null,"CRECIMIENTO EMPRESARIAL",null,null,null,{"$f":"'DATOS EMPRESA (1)'!B33","v":"Facturación año 2017:"},null,null,null,null,{"$f":"'DATOS EMPRESA (1)'!G33","v":0}]
[]
[null,null,"CALIDAD EMPLEO",null,"PLANTILLA DE LA EMPRESA"]
[null,null,null,null,null,null,null,"Con Contrato indefinido\nPersonas/Año",null,null,null,"Con Contrato Temporal\nPersonas/Año",null,null,"Total Personas/año"]
[null,null,null,null,"Plantilla media 2022 (2)",null,null,null,null,null,null,null,null,null,{"$f":"H57+L57","v":0}]
[null,null,null,null,"Plantilla finalización inversiones",null,null,null,null,null,null,null,null,null,{"$f":"H58+L58","v":0}]
[null,null,null,null,"- Incremento de plantilla",null,null,{"$f":"H58-H57","v":0},null,null,null,{"$f":"L58-L57","v":0},null,null,{"$f":"O58-O57","v":0}]
[null,null,null,null,"(2) Según el informe de vida laboral del 31/03/2022; 30/06/2022; 30/09/2022; 31/12/2022"]
[]
[null,null,null,null,"Número de mujeres en plantilla"]
[]
[]
[]
[null,null,"PRODUCCIÓN CALIDAD",null,"Certificados de inscripción vigentes durante el plazo de solicitud"]
[null,null,null,null,"Certificado Calidad y/o SG alimentaria (Menos iso14001) - ISO, IFS, BRC, EUREPGAP",null,null,null,null,null,null,false,"(Marcar en caso afirmativo)"]
[null,null,null,null,"PYME ecológica",null,null,null,null,null,null,false,"(Marcar en caso afirmativo)"]
[null,null,null,null,"Empresas artesanas",null,null,null,null,null,null,false,"(Marcar en caso afirmativo)"]
[null,null,null,null,"PYME DO, IGP",null,null,null,null,null,null,false,"(Marcar en caso afirmativo)"]
[]
[null,null,"ENTIDADES ASOCIATIVAS\nASOCIACIONISMO",null,"Entidad asociativa ",null,null,null,null,false,"(Marcar en caso afirmativo)"]
[null,null,null,null,"EAI",null,null,null,null,false,"(Elegir opción)"]
[null,null,"INTEGRACIÓN COOPERATIVA",null,"EAPIC mediante acuerdos intercooperativos a partir del 1 de enero de 2021 (EAPIC-AI)",null,null,null,null,false,"(Marcar en caso afirmativo)"]
[null,null,null,null,"EAPIC mediante fusión - absorción a partir del 1 de enero de 2021 (EAPIC-FAI)",null,null,null,null,false,"(Elegir opción)"]
[]
[null,null,"UBICACIÓN ESTABLECIMIENTO Y DESPOBLACIÓN",null,null,null,{"$f":"'DATOS PROYECTO'!D11 & \" \" & 'DATOS PROYECTO'!H10","v":"(Nombre del Municipio) NAVARRA"}]
[]
[null,null,null,null,"% ","Importe"]
[null,null,"INVERSIÓN USO EFICIENTE ENERGÍA",null,{"$f":"'DATOS PROYECTO'!F34","v":""},{"$f":"'DATOS PROYECTO'!H34","v":0}]
[]
[null,null,"NUEVA PLANTA PRODUCTIVA",null,"Nuevas plantas productivas de empresas radicadas en Navarra (base 2.8.b) o segunda fase de la construcción de una nueva planta productiva (base 2.8.c)",null,null,null,null,null,null,false,"(Marcar en caso afirmativo)"]
[null,null,null,null,"Nueva empresa en Navarra (base 2.8.a)",null,null,null,null,null,null,false,"(Marcar en caso afirmativo)"]
[]
[null,null,null,null,null,null,"% ","Importe"]
[null,null,"INVERSIÓN MAQUINARIA Y ACTIVOS INTANGIBLES",null,"Maquinaria",null,{"$f":"'DATOS PROYECTO'!F25","v":""},{"$f":"'DATOS PROYECTO'!H25","v":0}]
[null,null,null,null,"Activos Intangible",null,{"$f":"'DATOS PROYECTO'!F26","v":""},{"$f":"'DATOS PROYECTO'!H26","v":0}]
[null,null,null,null,"Total",null,{"$f":"SUM(G86:G87)","v":0},{"$f":"H86+H87","v":0}]
[]
[null,null,"INNOVACIÓN PRODUCTO O PROCESO",null,"% ","Importe"]
[null,null,null,null,{"$f":"'DATOS PROYECTO'!F33","v":""},{"$f":"'DATOS PROYECTO'!H33","v":0},null,null,"Proyecto I+D RECONOCIDO",null,null,false,"(Marcar en caso afirmativo)"]
[]
[null,null,"INNOVACIÓN INDUSTRIA 4.0",null,"% ","Importe"]
[null,null,null,null,{"$f":"'DATOS PROYECTO'!F32","v":""},{"$f":"'DATOS PROYECTO'!H32","v":0}]
[null,null,null,null,"Plan de Transformación Digital: la empresa ha realizado entre los años 2017 y 2022, o está realizando actualmente, un Plan de Transformación Digital (alcance convocatoria ayudas referidas en base 13)",null,null,null,null,null,null,false,"(Marcar en caso afirmativo)"]
[]
[null,null,"CREACIÓN EMPLEO",null,null,null,null,null,null,null,null,null,"Fecha situación alta"]
[null,null,null,null,null,null,null,null,null,null,"UTAS",null,"Desde",null,null,"Hasta"]
[null,null,null,null,"Plantilla Media de la empresa (Inicial)",null,null,null,null,null,null,null,"2022-01-01",null,null,"2022-12-31"]
[null,null,null,null,"Plantilla Media de la empresa (Final Estimada)",null,null,null,null,null,null,null,"2024-07-01",null,null,"2025-06-30"]
[]
[null,null,"INTERNACIONALIZACIÓN",null,{"$f":"'DATOS EMPRESA (1)'!G25","v":2020},null,{"$f":"'DATOS EMPRESA (1)'!J25","v":2021},null,null,{"$f":"'DATOS EMPRESA (1)'!M25","v":2022}]
[null,null,null,null,{"$f":"'DATOS EMPRESA (1)'!G29","v":0},null,{"$f":"'DATOS EMPRESA (1)'!J29","v":0},null,null,{"$f":"'DATOS EMPRESA (1)'!M29","v":0}]
[]
[null,null,"ESFUERZO INVERSOR",null,{"$f":"'DATOS EMPRESA (1)'!G25","v":2020},null,{"$f":"'DATOS EMPRESA (1)'!J25","v":2021},null,null,{"$f":"'DATOS EMPRESA (1)'!M25","v":2022}]
[null,null,null,null,{"$f":"'DATOS EMPRESA (1)'!G30","v":0},null,{"$f":"'DATOS EMPRESA (1)'!J30","v":0},null,null,{"$f":"'DATOS EMPRESA (1)'!M30","v":0}]

{"sheet":"Hoja5","index":6,"n_rows":632,"n_cols":21,"rows_kept":632,"cut":false,"hidden":true,"merged":[[1,3,1,5],[1,6,1,8]]}
["CapituloAyuda","QueLineaCapitulo1","QueLineaCapitulo2","Capitulos","PartidasAnexo1","DescriProductos","CapitulosFueraAnexo1","PartidasFueraAnexo1","DescriProductosFueraAnexo1",null,null,null,"ConcatenadoCNAES","TamañoEmpresaAGRO","ValoresCheck","TiposInverAgro","TiposInverAgroCod1","TiposInverAgroCod2","EntidadAsoIAE","EntidadAsoFusiAbsor","EntidadAsoIAESinEA"]
["Seleccione el capítulo por el que solicita la ayuda","Seleccione la línea","Seleccione la línea","Producto y partida según ANEXO 1 del TFUE",null,null,"Producto y partida según fuera ANEXO 1 del TFUE",null,null,"COD_CNAE2009","CODINTEGR","TITULO_CNAE2009","CONCATENADO CNAES","(Seleccione Tamaño)",true,"EDIFICIOS",1,1,"(Elegir opción)","(Elegir opción)","(Elegir opción)"]
["Capítulo 1","Línea A","Línea B","CAPÍTULOS","PARTIDAS","ELIJA UNA OPCIÓN DE LA LISTA DESPLEGABLE (desplacese con las flechas de dirección)","CAPÍTULOS","PARTIDAS","ELIJA UNA OPCIÓN DE LA LISTA DESPLEGABLE (desplacese con las flechas de dirección)",null,null,null,null,"Micro empresa",false,"MAQUINARIA",2,1,"Entidad asociativa","Cooperativas de segundo grado y Entidades Asociativas Prioritarias (EAP) que hayan incorporado nuevas cooperativas a partir del 1 de enero de 2021 (EAPIC-FAI).","Procesos de fusión o absorción entre 01/01/2010 y 01/01/2021"]
["Capítulo 2","Línea B",null,"Capítulo 1","Todas","Animales vivos","Fuera anexo 1 TFUE","Fuera anexo 1 TFUE","Otras materias fuera de Anexo1 TFUE","0111","A0111","Cultivo de cereales (excepto arroz), leguminosas y semillas oleaginosas",{"$f":"J4 &\" - \" & L4","v":"0111 - Cultivo de cereales (excepto arroz), leguminosas y semillas oleaginosas"},"Pequeña empresa",null,"MAQUINARIA - Ahorro Energético",2,4,"Procesos de fusión o absorción entre 01/01/2010 y 01/01/2021","Haber iniciado a partir del 1 de enero de 2021 un proceso de integración cooperativa mediante fusión o absorción (EAPIC-AI).","Procesos de integración (Acuerdos intercooperativos) entre 01/01/2010 y 01/01/2021"]
[null,null,null,"Capítulo 2","Todas","Carnes y despojos comestibles",null,null,null,"0112","A0112","Cultivo de arroz",{"$f":"J5 &\" - \" & L5","v":"0112 - Cultivo de arroz"},"Mediana empresa",null,"MAQUINARIA - Gestión eficiente recursos hídricos",2,6,"Procesos de integración (Acuerdos intercooperativos) entre 01/01/2010 y 01/01/2021",null,"Cooperativas de 2ª o ulterior grado con procesos de integración antes de 01/01/2010 y que la facturación sea > 10.000.000 € en el último año fiscal."]
[null,null,null,"Capítulo 3","Todas","Pescados, crustáceos y moluscos",null,null,null,"0113","A0113","Cultivo de hortalizas, raíces y tubérculos","0113 - Cultivo de hortalizas, raíces y tubérculos","Empresas de mediana capitalización (MIDCAPS)",null,"MAQUINARIA - Gestión eficiente residuos",2,5,"Cooperativas de 2ª o ulterior grado con procesos de integración antes de 01/01/2010 y que la facturación sea > 10.000.000 € en el último año fiscal.",null,"Las EAP y las EA integradas en una EAP"]
[null,null,null,"Capítulo 4","Todas","Leche y productos lácteos; huevos de ave; miel natural",null,null,null,"0114","A0114","Cultivo de caña de azúcar","0114 - Cultivo de caña de azúcar","Gran empresa",null,"MAQUINARIA - I+D",2,3,"Las EAP y las EA integradas en una EAP"]
[null,null,null,"Capítulo 5","05.04","Tripas, vejigas y estómagos de animales (distintos de los de pescado), enteros o en trozos",null,null,null,"0115","A0115","Cultivo de tabaco","0115 - Cultivo de tabaco",null,null,"MAQUINARIA - 4.0",2,2]
[null,null,null,"Capítulo 5","05.15","Productos de origen animal no expresados ni comprendidos en otras partidas; animales muertos de los capítulos 1 o 3, impropios para el consumo humano",null,null,null,"0116","A0116","Cultivo de plantas para fibras textiles","0116 - Cultivo de plantas para fibras textiles",null,null,"ACTIVOS INTANGIBLES",3,1]
[null,null,null,"Capítulo 6","Todas","Plantas vivas y productos de la floricultura",null,null,null,"0119","A0119","Otros cultivos no perennes","0119 - Otros cultivos no perennes",null,null,"ACTIVOS INTANGIBLES - Ahorro energético",3,4]
[null,null,null,"Capítulo 7","Todas","Legumbres, plantas, raíces y tubérculos alimenticios",null,null,null,"0121","A0121","Cultivo de la vid","0121 - Cultivo de la vid",null,null,"ACTIVOS INTANGIBLES - Gestión eficiente recursos hídricos",3,6]
[null,null,null,"Capítulo 8","Todas","Frutos comestibles; cortezas de agrios y de melones",null,null,null,"0122","A0122","Cultivo de frutos tropicales y subtropicales","0122 - Cultivo de frutos tropicales y subtropicales",null,null,"ACTIVOS INTANGIBLES - Gestión eficiente residuos",3,5]
[null,null,null,"Capítulo 9","Todas","Café, té y especias, con exlusión de la yerba mate (partida 09.03)",null,null,null,"0123","A0123","Cultivo de cítricos","0123 - Cultivo de cítricos",null,null,"ACTIVOS INTANGIBLES - I+D",3,3]
[null,null,null,"Capítulo 10","Todas","Cereales",null,null,null,"0124","A0124","Cultivo de frutos con hueso y pepitas","0124 - Cultivo de frutos con hueso y pepitas",null,null,"ACTIVOS INTANGIBLES - 4.0",3,2]
[null,null,null,"Capítulo 11","Todas","Productos de la molinería; malta; almidones y féculas; gluten; inulina",null,null,null,"0125","A0125","Cultivo de otros árboles y arbustos frutales y frutos secos","0125 - Cultivo de otros árboles y arbustos frutales y frutos secos",null,null,"OTRAS INVERSIONES",4,1]
[null,null,null,"Capítulo 12","Todas","Semillas y frutos oleaginosos; semillas, simientes y frutos diversos; plantas industriales y medicinales; pajas y forrajes",null,null,null,"0126","A0126","Cultivo de frutos oleaginosos","0126 - Cultivo de frutos oleaginosos"]
[null,null,null,"Capítulo 13","13.03","Pectina",null,null,null,"0127","A0127","Cultivo de plantas para bebidas","0127 - Cultivo de plantas para bebidas"]
[null,null,null,"Capítulo 15","15.01","Manteca, otras grasas de cerdo y grasas de aves de corral, prensadas o fundidas",null,null,null,"0128","A0128","Cultivo de especias, plantas aromáticas, medicinales y farmacéuticas","0128 - Cultivo de especias, plantas aromáticas, medicinales y farmacéuticas"]
[null,null,null,"Capítulo 15","15.02","Sebos (de las especies bovina, ovina y caprina) en bruto o fundidos, incluidos los sebos llamados \"primeros jugos\"",null,null,null,"0129","A0129","Otros cultivos perennes","0129 - Otros cultivos perennes"]
[null,null,null,"Capítulo 15","15.03","Estearina; oleoestearina; aceite de manteca de cerdo y oleomargarina no emulsionada, sin mezcla ni preparación alguna",null,null,null,"0130","A0130","Propagación de plantas","0130 - Propagación de plantas"]
[null,null,null,"Capítulo 15","15.04","Grasas y aceites de pescado y de mamíferos marinos, incluso refinados",null,null,null,"0141","A0141","Explotación de ganado bovino para la producción de leche","0141 - Explotación de ganado bovino para la producción de leche"]
[null,null,null,"Capítulo 15","15.07","Aceites vegetales fijos, fluidos o concretos, brutos, purificados o refinados",null,null,null,"0142","A0142","Explotación de otro ganado bovino y búfalos","0142 - Explotación de otro ganado bovino y búfalos"]
[null,null,null,"Capítulo 15","15.12","Grasas y aceites animales o vegetales hidrogenados, incluso refinados, pero sin preparación ulterior",null,null,null,"0143","A0143","Explotación de caballos y otros equinos","0143 - Explotación de caballos y otros equinos"]
[null,null,null,"Capítulo 15","15.13","Margarina, sucedáneos de la manteca de cerdo y otras grasas alimenticias preparadas",null,null,null,"0144","A0144","Explotación de camellos y otros camélidos","0144 - Explotación de camellos y otros camélidos"]
[null,null,null,"Capítulo 15","15.17","Residuos procedentes del tratamiento de los cuerpos grasos o de las ceras animales o vegetales",null,null,null,"0145","A0145","Explotación de ganado ovino y caprino","0145 - Explotación de ganado ovino y caprino"]
[null,null,null,"Capítulo 16","Todas","Preparados de carnes, de pescados, de crustáceos y de moluscos",null,null,null,"0146","A0146","Explotación de ganado porcino","0146 - Explotación de ganado porcino"]
[null,null,null,"Capítulo 17","17.01","Azúcares de remolacha y de caña, en estado sólido",null,null,null,"0147","A0147","Avicultura","0147 - Avicultura"]
[null,null,null,"Capítulo 17","17.02","Otros azúcares; jarabes; sucenáneos de la miel, incluso mezclados con miel natural; azúcares y melazas caramelizadas",null,null,null,"0149","A0149","Otras explotaciones de ganado","0149 - Otras explotaciones de ganado"]
[null,null,null,"Capítulo 17","17.03","Melazas, incluso decoloradas",null,null,null,"0150","A0150","Producción agrícola combinada con la producción ganadera","0150 - Producción agrícola combinada con la producción ganadera"]
[null,null,null,"Capítulo 17","17.05","Azúcares , jarabes y melazas aromatizados o con adición de colorantes (incluidos el azúcar con vainilla o vainillina), con excepción de los zumos de frutas con adición de azúcar en cuaquier porcentaje",null,null,null,"0161","A0161","Actividades de apoyo a la agricultura","0161 - Actividades de apoyo a la agricultura"]
[null,null,null,"Capítulo 18","18.01","Cacao en grano, entero o partido, crudo o totado",null,null,null,"0162","A0162","Actividades de apoyo a la ganadería","0162 - Actividades de apoyo a la ganadería"]
[null,null,null,"Capítulo 18","18.02","Cáscara, cascarilla, películas y residuos de cacao",null,null,null,"0163","A0163","Actividades de preparación posterior a la cosecha","0163 - Actividades de preparación posterior a la cosecha"]
[null,null,null,"Capítulo 20","Todas","Preparados de legumbres, de hortalizas, de frutas y de otras plantas o partes de plantas",null,null,null,"0164","A0164","Tratamiento de semillas para reproducción","0164 - Tratamiento de semillas para reproducción"]
[null,null,null,"Capítulo 22","22.04","Mosto de uva parcialmente fermentado, incluso \"apagado\" sin utilización de alcohol",null,null,null,"0170","A0170","Caza, captura de animales y servicios relacionados con las mismas","0170 - Caza, captura de animales y servicios relacionados con las mismas"]
[null,null,null,"Capítulo 22","22.05","Vinos de uva; mosto de uva \"apagado\" con alcohol (incluidas las mistelas)",null,null,null,"0210","A0210","Silvicultura y otras actividades forestales","0210 - Silvicultura y otras actividades forestales"]
[null,null,null,"Capítulo 22","22.07","Sidra, perada, aguamiel y otras bebidas fermentadas",null,null,null,"0220","A0220","Explotación de la madera","0220 - Explotación de la madera"]
[null,null,null,"Capítulo 22","22.08","1-Alcohol etílico desnaturalizado o sin desnaturalizar, decualquier graduación, obtenido con los productos agrícolas que se enumeran en el anexo I, con exclusión de losaguardientes, licores y demás bebidas espirituosas; preparados alcohólicos compuestos (llamados extractos concentrados) para la fabricación de bebidas",null,null,null,"0230","A0230","Recolección de productos silvestres, excepto madera","0230 - Recolección de productos silvestres, excepto madera"]
[null,null,null,"Capítulo 22","22.09","2-Alcohol etílico desnaturalizado o sin desnaturalizar, decualquier graduación, obtenido con los productos agrícolas que se enumeran en el anexo I, con exclusión de losaguardientes, licores y demás bebidas espirituosas; preparados alcohólicos compuestos (llamados extractos concentrados) para la fabricación de bebidas.",null,null,null,"0240","A0240","Servicios de apoyo a la silvicultura","0240 - Servicios de apoyo a la silvicultura"]
[null,null,null,"Capítulo 22","22.10","Vinagre y sus sucedáneos comestibles",null,null,null,"0311","A0311","Pesca marina","0311 - Pesca marina"]
[null,null,null,"Capítulo 23","Todas","Residuos y desperdicios de las industrias alimenticias; alimentos preparados para animales",null,null,null,"0312","A0312","Pesca en agua dulce","0312 - Pesca en agua dulce"]
[null,null,null,"Capítulo 24","24.01","Tabaco en rama o sin elaborar; desperdicios de tabaco",null,null,null,"0321","A0321","Acuicultura marina","0321 - Acuicultura marina"]
[null,null,null,"Capítulo 45","45.01","Corcho natural en bruto y desperdicios de corcho; corcho triturado, granulado o pulverizado",null,null,null,"0322","A0322","Acuicultura en agua dulce","0322 - Acuicultura en agua dulce"]
[null,null,null,"Capítulo 54","54.01","Lino en bruto (mies de lino), enriado, espadado, rastrillado (peinado) o trabajado de otra forma, pero sin hilar; estopas y desperdicios de lino (incluidas las hilachas)",null,null,null,"0510","B0510","Extracción de antracita y hulla","0510 - Extracción de antracita y hulla"]
[null,null,null,"Capítulo 57","57.01","Cáñamo (cannabis sativa) en rama, enriado, espadado, rastrillado (peinado) o trabajado de otra forma, pero sin hilar; estopas y desperdicios de lino (incluidas las hilachas)",null,null,null,"0520","B0520","Extracción de lignito","0520 - Extracción de lignito"]
[null,null,null,null,null,null,null,null,null,"0610","B0610","Extracción de crudo de petróleo","0610 - Extracción de crudo de petróleo"]
[null,null,null,null,null,null,null,null,null,"0620","B0620","Extracción de gas natural","0620 - Extracción de gas natural"]
[null,null,null,null,null,null,null,null,null,"0710","B0710","Extracción de minerales de hierro","0710 - Extracción de minerales de hierro"]
[null,null,null,null,null,null,null,null,null,"0721","B0721","Extracción de minerales de uranio y torio","0721 - Extracción de minerales de uranio y torio"]
[null,null,null,null,null,null,null,null,null,"0729","B0729","Extracción de otros minerales metálicos no férreos","0729 - Extracción de otros minerales metálicos no férreos"]
[null,null,null,null,null,null,null,null,null,"0811","B0811","Extracción de piedra ornamental y para la construcción, piedra caliza, yeso, creta y pizarra","0811 - Extracción de piedra ornamental y para la construcción, piedra caliza, yeso, creta y pizarra"]
[null,null,null,null,null,null,null,null,null,"0812","B0812","Extracción de gravas y arenas; extracción de arcilla y caolín","0812 - Extracción de gravas y arenas; extracción de arcilla y caolín"]
[null,null,null,null,null,null,null,null,null,"0891","B0891","Extracción de minerales para productos químicos y fertilizantes","0891 - Extracción de minerales para productos químicos y fertilizantes"]
[null,null,null,null,null,null,null,null,null,"0892","B0892","Extracción de turba","0892 - Extracción de turba"]
[null,null,null,null,null,null,null,null,null,"0893","B0893","Extracción de sal","0893 - Extracción de sal"]
[null,null,null,null,null,null,null,null,null,"0899","B0899","Otras industrias extractivas n.c.o.p.","0899 - Otras industrias extractivas n.c.o.p."]
[null,null,null,null,null,null,null,null,null,"0910","B0910","Actividades de apoyo a la extracción de petróleo y gas natural","0910 - Actividades de apoyo a la extracción de petróleo y gas natural"]
[null,null,null,null,null,null,null,null,null,"0990","B0990","Actividades de apoyo a otras industrias extractivas","0990 - Actividades de apoyo a otras industrias extractivas"]
[null,null,null,null,null,null,null,null,null,"1011","C1011","Procesado y conservación de carne","1011 - Procesado y conservación de carne"]
[null,null,null,null,null,null,null,null,null,"1012","C1012","Procesado y conservación de volatería","1012 - Procesado y conservación de volatería"]
[null,null,null,null,null,null,null,null,null,"1013","C1013","Elaboración de productos cárnicos y de volatería","1013 - Elaboración de productos cárnicos y de volatería"]
[null,null,null,null,null,null,null,null,null,"1021","C1021","Procesado de pescados, crustáceos y moluscos","1021 - Procesado de pescados, crustáceos y moluscos"]
[null,null,null,null,null,null,null,null,null,"1022","C1022","Fabricación de conservas de pescado","1022 - Fabricación de conservas de pescado"]
[null,null,null,null,null,null,null,null,null,"1031","C1031","Procesado y conservación de patatas","1031 - Procesado y conservación de patatas"]
[null,null,null,null,null,null,null,null,null,"1032","C1032","Elaboración de zumos de frutas y hortalizas","1032 - Elaboración de zumos de frutas y hortalizas"]
[null,null,null,null,null,null,null,null,null,"1039","C1039","Otro procesado y conservación de frutas y hortalizas","1039 - Otro procesado y conservación de frutas y hortalizas"]
[null,null,null,null,null,null,null,null,null,"1042","C1042","Fabricación de margarina y grasas comestibles similares","1042 - Fabricación de margarina y grasas comestibles similares"]
[null,null,null,null,null,null,null,null,null,"1043","C1043","Fabricación de aceite de oliva","1043 - Fabricación de aceite de oliva"]
[null,null,null,null,null,null,null,null,null,"1044","C1044","Fabricación de otros aceites y grasas","1044 - Fabricación de otros aceites y grasas"]
[null,null,null,null,null,null,null,null,null,"1052","C1052","Elaboración de helados",{"$f":"J69 &\" - \" & L69","v":"1052 - Elaboración de helados"}]
[null,null,null,null,null,null,null,null,null,"1053","C1053","Fabricación de quesos","1053 - Fabricación de quesos"]
[null,null,null,null,null,null,null,null,null,"1054","C1054","Preparación de leche y otros productos lácteos","1054 - Preparación de leche y otros productos lácteos"]
[null,null,null,null,null,null,null,null,null,"1061","C1061","Fabricación de productos de molinería","1061 - Fabricación de productos de molinería"]
[null,null,null,null,null,null,null,null,null,"1062","C1062","Fabricación de almidones y productos amiláceos","1062 - Fabricación de almidones y productos amiláceos"]
[null,null,null,null,null,null,null,null,null,"1071","C1071","Fabricación de pan y de productos frescos de panadería y pastelería","1071 - Fabricación de pan y de productos frescos de panadería y pastelería"]
[null,null,null,null,null,null,null,null,null,"1072","C1072","Fabricación de galletas y productos de panadería y pastelería de larga duración","1072 - Fabricación de galletas y productos de panadería y pastelería de larga duración"]
[null,null,null,null,null,null,null,null,null,"1073","C1073","Fabricación de pastas alimenticias, cuscús y productos similares","1073 - Fabricación de pastas alimenticias, cuscús y productos similares"]
[null,null,null,null,null,null,null,null,null,"1081","C1081","Fabricación de azúcar","1081 - Fabricación de azúcar"]
[null,null,null,null,null,null,null,null,null,"1082","C1082","Fabricación de cacao, chocolate y productos de confitería","1082 - Fabricación de cacao, chocolate y productos de confitería"]
[null,null,null,null,null,null,null,null,null,"1083","C1083","Elaboración de café, té e infusiones","1083 - Elaboración de café, té e infusiones"]
[null,null,null,null,null,null,null,null,null,"1084","C1084","Elaboración de especias, salsas y condimentos","1084 - Elaboración de especias, salsas y condimentos"]
[null,null,null,null,null,null,null,null,null,"1085","C1085","Elaboración de platos y comidas preparados","1085 - Elaboración de platos y comidas preparados"]
[null,null,null,null,null,null,null,null,null,"1086","C1086","Elaboración de preparados alimenticios homogeneizados y alimentos dietéticos","1086 - Elaboración de preparados alimenticios homogeneizados y alimentos dietéticos"]
[null,null,null,null,null,null,null,null,null,"1089","C1089","Elaboración de otros productos alimenticios n.c.o.p.","1089 - Elaboración de otros productos alimenticios n.c.o.p."]
[null,null,null,null,null,null,null,null,null,"1091","C1091","Fabricación de productos para la alimentación de animales de granja","1091 - Fabricación de productos para la alimentación de animales de granja"]
[null,null,null,null,null,null,null,null,null,"1092","C1092","Fabricación de productos para la alimentación de animales de compañía","1092 - Fabricación de productos para la alimentación de animales de compañía"]
[null,null,null,null,null,null,null,null,null,"1101","C1101","Destilación, rectificación y mezcla de bebidas alcohólicas","1101 - Destilación, rectificación y mezcla de bebidas alcohólicas"]
[null,null,null,null,null,null,null,null,null,"1102","C1102","Elaboración de vinos","1102 - Elaboración de vinos"]
[null,null,null,null,null,null,null,null,null,"1103","C1103","Elaboración de sidra y otras bebidas fermentadas a partir de frutas","1103 - Elaboración de sidra y otras bebidas fermentadas a partir de frutas"]
[null,null,null,null,null,null,null,null,null,"1104","C1104","Elaboración de otras bebidas no destiladas, procedentes de la fermentación","1104 - Elaboración de otras bebidas no destiladas, procedentes de la fermentación"]
[null,null,null,null,null,null,null,null,null,"1105","C1105","Fabricación de cerveza","1105 - Fabricación de cerveza"]
[null,null,null,null,null,null,null,null,null,"1106","C1106","Fabricación de malta","1106 - Fabricación de malta"]
[null,null,null,null,null,null,null,null,null,"1107","C1107","Fabricación de bebidas no alcohólicas; producción de aguas minerales y otras aguas embotelladas","1107 - Fabricación de bebidas no alcohólicas; producción de aguas minerales y otras aguas embotelladas"]
[null,null,null,null,null,null,null,null,null,"1200","C1200","Industria del tabaco","1200 - Industria del tabaco"]
[null,null,null,null,null,null,null,null,null,"1310","C1310","Preparación e hilado de fibras textiles","1310 - Preparación e hilado de fibras textiles"]
[null,null,null,null,null,null,null,null,null,"1320","C1320","Fabricación de tejidos textiles","1320 - Fabricación de tejidos textiles"]
[null,null,null,null,null,null,null,null,null,"1330","C1330","Acabado de textiles","1330 - Acabado de textiles"]
[null,null,null,null,null,null,null,null,null,"1391","C1391","Fabricación de tejidos de punto","1391 - Fabricación de tejidos de punto"]
[null,null,null,null,null,null,null,null,null,"1392","C1392","Fabricación de artículos confeccionados con textiles, excepto prendas de vestir","1392 - Fabricación de artículos confeccionados con textiles, excepto prendas de vestir"]
[null,null,null,null,null,null,null,null,null,"1393","C1393","Fabricación de alfombras y moquetas","1393 - Fabricación de alfombras y moquetas"]
[null,null,null,null,null,null,null,null,null,"1394","C1394","Fabricación de cuerdas, cordeles, bramantes y redes","1394 - Fabricación de cuerdas, cordeles, bramantes y redes"]
[null,null,null,null,null,null,null,null,null,"1395","C1395","Fabricación de telas no tejidas y artículos confeccionados con ellas, excepto prendas de vestir","1395 - Fabricación de telas no tejidas y artículos confeccionados con ellas, excepto prendas de vestir"]
[null,null,null,null,null,null,null,null,null,"1396","C1396","Fabricación de otros productos textiles de uso técnico e industrial","1396 - Fabricación de otros productos textiles de uso técnico e industrial"]
[null,null,null,null,null,null,null,null,null,"1399","C1399","Fabricación de otros productos textiles n.c.o.p.","1399 - Fabricación de otros productos textiles n.c.o.p."]
[null,null,null,null,null,null,null,null,null,"1411","C1411","Confección de prendas de vestir de cuero","1411 - Confección de prendas de vestir de cuero"]
[null,null,null,null,null,null,null,null,null,"1412","C1412","Confección de ropa de trabajo","1412 - Confección de ropa de trabajo"]
[null,null,null,null,null,null,null,null,null,"1413","C1413","Confección de otras prendas de vestir exteriores","1413 - Confección de otras prendas de vestir exteriores"]
[null,null,null,null,null,null,null,null,null,"1414","C1414","Confección de ropa interior","1414 - Confección de ropa interior"]
[null,null,null,null,null,null,null,null,null,"1419","C1419","Confección de otras prendas de vestir y accesorios","1419 - Confección de otras prendas de vestir y accesorios"]
[null,null,null,null,null,null,null,null,null,"1420","C1420","Fabricación de artículos de peletería","1420 - Fabricación de artículos de peletería"]
[null,null,null,null,null,null,null,null,null,"1431","C1431","Confección de calcetería","1431 - Confección de calcetería"]
[null,null,null,null,null,null,null,null,null,"1439","C1439","Confección de otras prendas de vestir de punto","1439 - Confección de otras prendas de vestir de punto"]
[null,null,null,null,null,null,null,null,null,"1511","C1511","Preparación, curtido y acabado del cuero; preparación y teñido de pieles","1511 - Preparación, curtido y acabado del cuero; preparación y teñido de pieles"]
[null,null,null,null,null,null,null,null,null,"1512","C1512","Fabricación de artículos de marroquinería, viaje y de guarnicionería y talabartería","1512 - Fabricación de artículos de marroquinería, viaje y de guarnicionería y talabartería"]
[null,null,null,null,null,null,null,null,null,"1520","C1520","Fabricación de calzado","1520 - Fabricación de calzado"]
[null,null,null,null,null,null,null,null,null,"1610","C1610","Aserrado y cepillado de la madera","1610 - Aserrado y cepillado de la madera"]
[null,null,null,null,null,null,null,null,null,"1621","C1621","Fabricación de chapas y tableros de madera","1621 - Fabricación de chapas y tableros de madera"]
[null,null,null,null,null,null,null,null,null,"1622","C1622","Fabricación de suelos de madera ensamblados","1622 - Fabricación de suelos de madera ensamblados"]
[null,null,null,null,null,null,null,null,null,"1623","C1623","Fabricación de otras estructuras de madera y piezas de carpintería y ebanistería para la construcción","1623 - Fabricación de otras estructuras de madera y piezas de carpintería y ebanistería para la construcción"]
[null,null,null,null,null,null,null,null,null,"1624","C1624","Fabricación de envases y embalajes de madera","1624 - Fabricación de envases y embalajes de madera"]
[null,null,null,null,null,null,null,null,null,"1629","C1629","Fabricación de otros productos de madera; artículos de corcho, cestería y espartería","1629 - Fabricación de otros productos de madera; artículos de corcho, cestería y espartería"]
[null,null,null,null,null,null,null,null,null,"1711","C1711","Fabricación de pasta papelera","1711 - Fabricación de pasta papelera"]
[null,null,null,null,null,null,null,null,null,"1712","C1712","Fabricación de papel y cartón","1712 - Fabricación de papel y cartón"]
[null,null,null,null,null,null,null,null,null,"1721","C1721","Fabricación de papel y cartón ondulados; fabricación de envases y embalajes de papel y cartón","1721 - Fabricación de papel y cartón ondulados; fabricación de envases y embalajes de papel y cartón"]
[null,null,null,null,null,null,null,null,null,"1722","C1722","Fabricación de artículos de papel y cartón para uso doméstico, sanitario e higiénico","1722 - Fabricación de artículos de papel y cartón para uso doméstico, sanitario e higiénico"]
[null,null,null,null,null,null,null,null,null,"1723","C1723","Fabricación de artículos de papelería","1723 - Fabricación de artículos de papelería"]
[null,null,null,null,null,null,null,null,null,"1724","C1724","Fabricación de papeles pintados","1724 - Fabricación de papeles pintados"]
[null,null,null,null,null,null,null,null,null,"1729","C1729","Fabricación de otros artículos de papel y cartón","1729 - Fabricación de otros artículos de papel y cartón"]
[null,null,null,null,null,null,null,null,null,"1811","C1811","Artes gráficas y servicios relacionados con las mismas","1811 - Artes gráficas y servicios relacionados con las mismas"]
[null,null,null,null,null,null,null,null,null,"1812","C1812","Otras actividades de impresión y artes gráficas","1812 - Otras actividades de impresión y artes gráficas"]
[null,null,null,null,null,null,null,null,null,"1813","C1813","Servicios de preimpresión y preparación de soportes","1813 - Servicios de preimpresión y preparación de soportes"]
[null,null,null,null,null,null,null,null,null,"1814","C1814","Encuadernación y servicios relacionados con la misma","1814 - Encuadernación y servicios relacionados con la misma"]
[null,null,null,null,null,null,null,null,null,"1820","C1820","Reproducción de soportes grabados","1820 - Reproducción de soportes grabados"]
[null,null,null,null,null,null,null,null,null,"1910","C1910","Coquerías",{"$f":"J133 &\" - \" & L133","v":"1910 - Coquerías"}]
[null,null,null,null,null,null,null,null,null,"1920","C1920","Refino de petróleo","1920 - Refino de petróleo"]
[null,null,null,null,null,null,null,null,null,"2011","C2011","Fabricación de gases industriales","2011 - Fabricación de gases industriales"]
[null,null,null,null,null,null,null,null,null,"2012","C2012","Fabricación de colorantes y pigmentos","2012 - Fabricación de colorantes y pigmentos"]
[null,null,null,null,null,null,null,null,null,"2013","C2013","Fabricación de otros productos básicos de química inorgánica","2013 - Fabricación de otros productos básicos de química inorgánica"]
[null,null,null,null,null,null,null,null,null,"2014","C2014","Fabricación de otros productos básicos de química orgánica","2014 - Fabricación de otros productos básicos de química orgánica"]
[null,null,null,null,null,null,null,null,null,"2015","C2015","Fabricación de fertilizantes y compuestos nitrogenados","2015 - Fabricación de fertilizantes y compuestos nitrogenados"]
[null,null,null,null,null,null,null,null,null,"2016","C2016","Fabricación de plásticos en formas primarias","2016 - Fabricación de plásticos en formas primarias"]
[null,null,null,null,null,null,null,null,null,"2017","C2017","Fabricación de caucho sintético en formas primarias","2017 - Fabricación de caucho sintético en formas primarias"]
[null,null,null,null,null,null,null,null,null,"2020","C2020","Fabricación de pesticidas y otros productos agroquímicos","2020 - Fabricación de pesticidas y otros productos agroquímicos"]
[null,null,null,null,null,null,null,null,null,"2030","C2030","Fabricación de pinturas, barnices y revestimientos similares; tintas de imprenta y masillas","2030 - Fabricación de pinturas, barnices y revestimientos similares; tintas de imprenta y masillas"]
[null,null,null,null,null,null,null,null,null,"2041","C2041","Fabricación de jabones, detergentes y otros artículos de limpieza y abrillantamiento","2041 - Fabricación de jabones, detergentes y otros artículos de limpieza y abrillantamiento"]
[null,null,null,null,null,null,null,null,null,"2042","C2042","Fabricación de perfumes y cosméticos","2042 - Fabricación de perfumes y cosméticos"]
[null,null,null,null,null,null,null,null,null,"2051","C2051","Fabricación de explosivos","2051 - Fabricación de explosivos"]
[null,null,null,null,null,null,null,null,null,"2052","C2052","Fabricación de colas","2052 - Fabricación de colas"]
[null,null,null,null,null,null,null,null,null,"2053","C2053","Fabricación de aceites esenciales","2053 - Fabricación de aceites esenciales"]
[null,null,null,null,null,null,null,null,null,"2059","C2059","Fabricación de otros productos químicos n.c.o.p.","2059 - Fabricación de otros productos químicos n.c.o.p."]
[null,null,null,null,null,null,null,null,null,"2060","C2060","Fabricación de fibras artificiales y sintéticas","2060 - Fabricación de fibras artificiales y sintéticas"]
[null,null,null,null,null,null,null,null,null,"2110","C2110","Fabricación de productos farmacéuticos de base","2110 - Fabricación de productos farmacéuticos de base"]
[null,null,null,null,null,null,null,null,null,"2120","C2120","Fabricación de especialidades farmacéuticas","2120 - Fabricación de especialidades farmacéuticas"]
[null,null,null,null,null,null,null,null,null,"2211","C2211","Fabricación de neumáticos y cámaras de caucho; reconstrucción y recauchutado de neumáticos","2211 - Fabricación de neumáticos y cámaras de caucho; reconstrucción y recauchutado de neumáticos"]
[null,null,null,null,null,null,null,null,null,"2219","C2219","Fabricación de otros productos de caucho","2219 - Fabricación de otros productos de caucho"]
[null,null,null,null,null,null,null,null,null,"2221","C2221","Fabricación de placas, hojas, tubos y perfiles de plástico","2221 - Fabricación de placas, hojas, tubos y perfiles de plástico"]
[null,null,null,null,null,null,null,null,null,"2222","C2222","Fabricación de envases y embalajes de plástico","2222 - Fabricación de envases y embalajes de plástico"]
[null,null,null,null,null,null,null,null,null,"2223","C2223","Fabricación de productos de plástico para la construcción","2223 - Fabricación de productos de plástico para la construcción"]
[null,null,null,null,null,null,null,null,null,"2229","C2229","Fabricación de otros productos de plástico","2229 - Fabricación de otros productos de plástico"]
[null,null,null,null,null,null,null,null,null,"2311","C2311","Fabricación de vidrio plano","2311 - Fabricación de vidrio plano"]
[null,null,null,null,null,null,null,null,null,"2312","C2312","Manipulado y transformación de vidrio plano","2312 - Manipulado y transformación de vidrio plano"]
[null,null,null,null,null,null,null,null,null,"2313","C2313","Fabricación de vidrio hueco","2313 - Fabricación de vidrio hueco"]
[null,null,null,null,null,null,null,null,null,"2314","C2314","Fabricación de fibra de vidrio","2314 - Fabricación de fibra de vidrio"]
[null,null,null,null,null,null,null,null,null,"2319","C2319","Fabricación y manipulado de otro vidrio, incluido el vidrio técnico","2319 - Fabricación y manipulado de otro vidrio, incluido el vidrio técnico"]
[null,null,null,null,null,null,null,null,null,"2320","C2320","Fabricación de productos cerámicos refractarios","2320 - Fabricación de productos cerámicos refractarios"]
[null,null,null,null,null,null,null,null,null,"2331","C2331","Fabricación de azulejos y baldosas de cerámica","2331 - Fabricación de azulejos y baldosas de cerámica"]
[null,null,null,null,null,null,null,null,null,"2332","C2332","Fabricación de ladrillos, tejas y productos de tierras cocidas para la construcción","2332 - Fabricación de ladrillos, tejas y productos de tierras cocidas para la construcción"]
[null,null,null,null,null,null,null,null,null,"2341","C2341","Fabricación de artículos cerámicos de uso doméstico y ornamental","2341 - Fabricación de artículos cerámicos de uso doméstico y ornamental"]
[null,null,null,null,null,null,null,null,null,"2342","C2342","Fabricación de aparatos sanitarios cerámicos","2342 - Fabricación de aparatos sanitarios cerámicos"]
[null,null,null,null,null,null,null,null,null,"2343","C2343","Fabricación de aisladores y piezas aislantes de material cerámico","2343 - Fabricación de aisladores y piezas aislantes de material cerámico"]
[null,null,null,null,null,null,null,null,null,"2344","C2344","Fabricación de otros productos cerámicos de uso técnico","2344 - Fabricación de otros productos cerámicos de uso técnico"]
[null,null,null,null,null,null,null,null,null,"2349","C2349","Fabricación de otros productos cerámicos","2349 - Fabricación de otros productos cerámicos"]
[null,null,null,null,null,null,null,null,null,"2351","C2351","Fabricación de cemento","2351 - Fabricación de cemento"]
[null,null,null,null,null,null,null,null,null,"2352","C2352","Fabricación de cal y yeso","2352 - Fabricación de cal y yeso"]
[null,null,null,null,null,null,null,null,null,"2361","C2361","Fabricación de elementos de hormigón para la construcción","2361 - Fabricación de elementos de hormigón para la construcción"]
[null,null,null,null,null,null,null,null,null,"2362","C2362","Fabricación de elementos de yeso para la construcción","2362 - Fabricación de elementos de yeso para la construcción"]
[null,null,null,null,null,null,null,null,null,"2363","C2363","Fabricación de hormigón fresco","2363 - Fabricación de hormigón fresco"]
[null,null,null,null,null,null,null,null,null,"2364","C2364","Fabricación de mortero","2364 - Fabricación de mortero"]
[null,null,null,null,null,null,null,null,null,"2365","C2365","Fabricación de fibrocemento","2365 - Fabricación de fibrocemento"]
[null,null,null,null,null,null,null,null,null,"2369","C2369","Fabricación de otros productos de hormigón, yeso y cemento","2369 - Fabricación de otros productos de hormigón, yeso y cemento"]
[null,null,null,null,null,null,null,null,null,"2370","C2370","Corte, tallado y acabado de la piedra","2370 - Corte, tallado y acabado de la piedra"]
[null,null,null,null,null,null,null,null,null,"2391","C2391","Fabricación de productos abrasivos","2391 - Fabricación de productos abrasivos"]
[null,null,null,null,null,null,null,null,null,"2399","C2399","Fabricación de otros productos minerales no metálicos n.c.o.p.","2399 - Fabricación de otros productos minerales no metálicos n.c.o.p."]
[null,null,null,null,null,null,null,null,null,"2410","C2410","Fabricación de productos básicos de hierro, acero y ferroaleaciones","2410 - Fabricación de productos básicos de hierro, acero y ferroaleaciones"]
[null,null,null,null,null,null,null,null,null,"2420","C2420","Fabricación de tubos, tuberías, perfiles huecos y sus accesorios, de acero","2420 - Fabricación de tubos, tuberías, perfiles huecos y sus accesorios, de acero"]
[null,null,null,null,null,null,null,null,null,"2431","C2431","Estirado en frío","2431 - Estirado en frío"]
[null,null,null,null,null,null,null,null,null,"2432","C2432","Laminación en frío","2432 - Laminación en frío"]
[null,null,null,null,null,null,null,null,null,"2433","C2433","Producción de perfiles en frío por conformación con plegado","2433 - Producción de perfiles en frío por conformación con plegado"]
[null,null,null,null,null,null,null,null,null,"2434","C2434","Trefilado en frío","2434 - Trefilado en frío"]
[null,null,null,null,null,null,null,null,null,"2441","C2441","Producción de metales preciosos","2441 - Producción de metales preciosos"]
[null,null,null,null,null,null,null,null,null,"2442","C2442","Producción de aluminio","2442 - Producción de aluminio"]
[null,null,null,null,null,null,null,null,null,"2443","C2443","Producción de plomo, zinc y estaño","2443 - Producción de plomo, zinc y estaño"]
[null,null,null,null,null,null,null,null,null,"2444","C2444","Producción de cobre","2444 - Producción de cobre"]
[null,null,null,null,null,null,null,null,null,"2445","C2445","Producción de otros metales no férreos","2445 - Producción de otros metales no férreos"]
[null,null,null,null,null,null,null,null,null,"2446","C2446","Procesamiento de combustibles nucleares","2446 - Procesamiento de combustibles nucleares"]
[null,null,null,null,null,null,null,null,null,"2451","C2451","Fundición de hierro","2451 - Fundición de hierro"]
[null,null,null,null,null,null,null,null,null,"2452","C2452","Fundición de acero","2452 - Fundición de acero"]
[null,null,null,null,null,null,null,null,null,"2453","C2453","Fundición de metales ligeros",{"$f":"J197 &\" - \" & L197","v":"2453 - Fundición de metales ligeros"}]
[null,null,null,null,null,null,null,null,null,"2454","C2454","Fundición de otros metales no férreos","2454 - Fundición de otros metales no férreos"]
[null,null,null,null,null,null,null,null,null,"2511","C2511","Fabricación de estructuras metálicas y sus componentes","2511 - Fabricación de estructuras metálicas y sus componentes"]
[null,null,null,null,null,null,null,null,null,"2512","C2512","Fabricación de carpintería metálica","2512 - Fabricación de carpintería metálica"]
[null,null,null,null,null,null,null,null,null,"2521","C2521","Fabricación de radiadores y calderas para calefacción central","2521 - Fabricación de radiadores y calderas para calefacción central"]
[null,null,null,null,null,null,null,null,null,"2529","C2529","Fabricación de otras cisternas, grandes depósitos y contenedores de metal","2529 - Fabricación de otras cisternas, grandes depósitos y contenedores de metal"]
[null,null,null,null,null,null,null,null,null,"2530","C2530","Fabricación de generadores de vapor, excepto calderas de calefacción central","2530 - Fabricación de generadores de vapor, excepto calderas de calefacción central"]
[null,null,null,null,null,null,null,null,null,"2540","C2540","Fabricación de armas y municiones","2540 - Fabricación de armas y municiones"]
[null,null,null,null,null,null,null,null,null,"2550","C2550","Forja, estampación y embutición de metales; metalurgia de polvos","2550 - Forja, estampación y embutición de metales; metalurgia de polvos"]
[null,null,null,null,null,null,null,null,null,"2561","C2561","Tratamiento y revestimiento de metales","2561 - Tratamiento y revestimiento de metales"]
[null,null,null,null,null,null,null,null,null,"2562","C2562","Ingeniería mecánica por cuenta de terceros","2562 - Ingeniería mecánica por cuenta de terceros"]
[null,null,null,null,null,null,null,null,null,"2571","C2571","Fabricación de artículos de cuchillería y cubertería","2571 - Fabricación de artículos de cuchillería y cubertería"]
[null,null,null,null,null,null,null,null,null,"2572","C2572","Fabricación de cerraduras y herrajes","2572 - Fabricación de cerraduras y herrajes"]
[null,null,null,null,null,null,null,null,null,"2573","C2573","Fabricación de herramientas","2573 - Fabricación de herramientas"]
[null,null,null,null,null,null,null,null,null,"2591","C2591","Fabricación de bidones y toneles de hierro o acero","2591 - Fabricación de bidones y toneles de hierro o acero"]
[null,null,null,null,null,null,null,null,null,"2592","C2592","Fabricación de envases y embalajes metálicos ligeros","2592 - Fabricación de envases y embalajes metálicos ligeros"]
[null,null,null,null,null,null,null,null,null,"2593","C2593","Fabricación de productos de alambre, cadenas y muelles","2593 - Fabricación de productos de alambre, cadenas y muelles"]
[null,null,null,null,null,null,null,null,null,"2594","C2594","Fabricación de pernos y productos de tornillería","2594 - Fabricación de pernos y productos de tornillería"]
[null,null,null,null,null,null,null,null,null,"2599","C2599","Fabricación de otros productos metálicos n.c.o.p.","2599 - Fabricación de otros productos metálicos n.c.o.p."]
[null,null,null,null,null,null,null,null,null,"2611","C2611","Fabricación de componentes electrónicos","2611 - Fabricación de componentes electrónicos"]
[null,null,null,null,null,null,null,null,null,"2612","C2612","Fabricación de circuitos impresos ensamblados","2612 - Fabricación de circuitos impresos ensamblados"]
[null,null,null,null,null,null,null,null,null,"2620","C2620","Fabricación de ordenadores y equipos periféricos","2620 - Fabricación de ordenadores y equipos periféricos"]
[null,null,null,null,null,null,null,null,null,"2630","C2630","Fabricación de equipos de telecomunicaciones","2630 - Fabricación de equipos de telecomunicaciones"]
[null,null,null,null,null,null,null,null,null,"2640","C2640","Fabricación de productos electrónicos de consumo","2640 - Fabricación de productos electrónicos de consumo"]
[null,null,null,null,null,null,null,null,null,"2651","C2651","Fabricación de instrumentos y aparatos de medida, verificación y navegación","2651 - Fabricación de instrumentos y aparatos de medida, verificación y navegación"]
[null,null,null,null,null,null,null,null,null,"2652","C2652","Fabricación de relojes","2652 - Fabricación de relojes"]
[null,null,null,null,null,null,null,null,null,"2660","C2660","Fabricación de equipos de radiación, electromédicos y electroterapéuticos","2660 - Fabricación de equipos de radiación, electromédicos y electroterapéuticos"]
[null,null,null,null,null,null,null,null,null,"2670","C2670","Fabricación de instrumentos de óptica y equipo fotográfico","2670 - Fabricación de instrumentos de óptica y equipo fotográfico"]
[null,null,null,null,null,null,null,null,null,"2680","C2680","Fabricación de soportes magnéticos y ópticos","2680 - Fabricación de soportes magnéticos y ópticos"]
[null,null,null,null,null,null,null,null,null,"2711","C2711","Fabricación de motores, generadores y transformadores eléctricos","2711 - Fabricación de motores, generadores y transformadores eléctricos"]
[null,null,null,null,null,null,null,null,null,"2712","C2712","Fabricación de aparatos de distribución y control eléctrico","2712 - Fabricación de aparatos de distribución y control eléctrico"]
[null,null,null,null,null,null,null,null,null,"2720","C2720","Fabricación de pilas y acumuladores eléctricos","2720 - Fabricación de pilas y acumuladores eléctricos"]
[null,null,null,null,null,null,null,null,null,"2731","C2731","Fabricación de cables de fibra óptica","2731 - Fabricación de cables de fibra óptica"]
[null,null,null,null,null,null,null,null,null,"2732","C2732","Fabricación de otros hilos y cables electrónicos y eléctricos","2732 - Fabricación de otros hilos y cables electrónicos y eléctricos"]
[null,null,null,null,null,null,null,null,null,"2733","C2733","Fabricación de dispositivos de cableado","2733 - Fabricación de dispositivos de cableado"]
[null,null,null,null,null,null,null,null,null,"2740","C2740","Fabricación de lámparas y aparatos eléctricos de iluminación","2740 - Fabricación de lámparas y aparatos eléctricos de iluminación"]
[null,null,null,null,null,null,null,null,null,"2751","C2751","Fabricación de electrodomésticos","2751 - Fabricación de electrodomésticos"]
[null,null,null,null,null,null,null,null,null,"2752","C2752","Fabricación de aparatos domésticos no eléctricos","2752 - Fabricación de aparatos domésticos no eléctricos"]
[null,null,null,null,null,null,null,null,null,"2790","C2790","Fabricación de otro material y equipo eléctrico","2790 - Fabricación de otro material y equipo eléctrico"]
[null,null,null,null,null,null,null,null,null,"2811","C2811","Fabricación de motores y turbinas, excepto los destinados a aeronaves, vehículos automóviles y ciclomotores","2811 - Fabricación de motores y turbinas, excepto los destinados a aeronaves, vehículos automóviles y ciclomotores"]
[null,null,null,null,null,null,null,null,null,"2812","C2812","Fabricación de equipos de transmisión hidráulica y neumática","2812 - Fabricación de equipos de transmisión hidráulica y neumática"]
[null,null,null,null,null,null,null,null,null,"2813","C2813","Fabricación de otras bombas y compresores","2813 - Fabricación de otras bombas y compresores"]
[null,null,null,null,null,null,null,null,null,"2814","C2814","Fabricación de otra grifería y válvulas","2814 - Fabricación de otra grifería y válvulas"]
[null,null,null,null,null,null,null,null,null,"2815","C2815","Fabricación de cojinetes, engranajes y órganos mecánicos de transmisión","2815 - Fabricación de cojinetes, engranajes y órganos mecánicos de transmisión"]
[null,null,null,null,null,null,null,null,null,"2821","C2821","Fabricación de hornos y quemadores","2821 - Fabricación de hornos y quemadores"]
[null,null,null,null,null,null,null,null,null,"2822","C2822","Fabricación de maquinaria de elevación y manipulación","2822 - Fabricación de maquinaria de elevación y manipulación"]
[null,null,null,null,null,null,null,null,null,"2823","C2823","Fabricación de máquinas y equipos de oficina, excepto equipos informáticos","2823 - Fabricación de máquinas y equipos de oficina, excepto equipos informáticos"]
[null,null,null,null,null,null,null,null,null,"2824","C2824","Fabricación de herramientas eléctricas manuales","2824 - Fabricación de herramientas eléctricas manuales"]
[null,null,null,null,null,null,null,null,null,"2825","C2825","Fabricación de maquinaria de ventilación y refrigeración no doméstica","2825 - Fabricación de maquinaria de ventilación y refrigeración no doméstica"]
[null,null,null,null,null,null,null,null,null,"2829","C2829","Fabricación de otra maquinaria de uso general n.c.o.p.","2829 - Fabricación de otra maquinaria de uso general n.c.o.p."]
[null,null,null,null,null,null,null,null,null,"2830","C2830","Fabricación de maquinaria agraria y forestal","2830 - Fabricación de maquinaria agraria y forestal"]
[null,null,null,null,null,null,null,null,null,"2841","C2841","Fabricación de máquinas herramienta para trabajar el metal","2841 - Fabricación de máquinas herramienta para trabajar el metal"]
[null,null,null,null,null,null,null,null,null,"2849","C2849","Fabricación de otras máquinas herramienta","2849 - Fabricación de otras máquinas herramienta"]
[null,null,null,null,null,null,null,null,null,"2891","C2891","Fabricación de maquinaria para la industria metalúrgica","2891 - Fabricación de maquinaria para la industria metalúrgica"]
[null,null,null,null,null,null,null,null,null,"2892","C2892","Fabricación de maquinaria para las industrias extractivas y de la construcción","2892 - Fabricación de maquinaria para las industrias extractivas y de la construcción"]
[null,null,null,null,null,null,null,null,null,"2893","C2893","Fabricación de maquinaria para la industria de la alimentación, bebidas y tabaco","2893 - Fabricación de maquinaria para la industria de la alimentación, bebidas y tabaco"]
[null,null,null,null,null,null,null,null,null,"2894","C2894","Fabricación de maquinaria para las industrias textil, de la confección y del cuero","2894 - Fabricación de maquinaria para las industrias textil, de la confección y del cuero"]
[null,null,null,null,null,null,null,null,null,"2895","C2895","Fabricación de maquinaria para la industria del papel y del cartón","2895 - Fabricación de maquinaria para la industria del papel y del cartón"]
[null,null,null,null,null,null,null,null,null,"2896","C2896","Fabricación de maquinaria para la industria del plástico y el caucho","2896 - Fabricación de maquinaria para la industria del plástico y el caucho"]
[null,null,null,null,null,null,null,null,null,"2899","C2899","Fabricación de otra maquinaria para usos específicos n.c.o.p.","2899 - Fabricación de otra maquinaria para usos específicos n.c.o.p."]
[null,null,null,null,null,null,null,null,null,"2910","C2910","Fabricación de vehículos de motor","2910 - Fabricación de vehículos de motor"]
[null,null,null,null,null,null,null,null,null,"2920","C2920","Fabricación de carrocerías para vehículos de motor; fabricación de remolques y semirremolques","2920 - Fabricación de carrocerías para vehículos de motor; fabricación de remolques y semirremolques"]
[null,null,null,null,null,null,null,null,null,"2931","C2931","Fabricación de equipos eléctricos y electrónicos para vehículos de motor","2931 - Fabricación de equipos eléctricos y electrónicos para vehículos de motor"]
[null,null,null,null,null,null,null,null,null,"2932","C2932","Fabricación de otros componentes, piezas y accesorios para vehículos de motor","2932 - Fabricación de otros componentes, piezas y accesorios para vehículos de motor"]
[null,null,null,null,null,null,null,null,null,"3011","C3011","Construcción de barcos y estructuras flotantes",{"$f":"J261 &\" - \" & L261","v":"3011 - Construcción de barcos y estructuras flotantes"}]
[null,null,null,null,null,null,null,null,null,"3012","C3012","Construcción de embarcaciones de recreo y deporte","3012 - Construcción de embarcaciones de recreo y deporte"]
[null,null,null,null,null,null,null,null,null,"3020","C3020","Fabricación de locomotoras y material ferroviario","3020 - Fabricación de locomotoras y material ferroviario"]
[null,null,null,null,null,null,null,null,null,"3030","C3030","Construcción aeronáutica y espacial y su maquinaria","3030 - Construcción aeronáutica y espacial y su maquinaria"]
[null,null,null,null,null,null,null,null,null,"3040","C3040","Fabricación de vehículos militares de combate","3040 - Fabricación de vehículos militares de combate"]
[null,null,null,null,null,null,null,null,null,"3091","C3091","Fabricación de motocicletas","3091 - Fabricación de motocicletas"]
[null,null,null,null,null,null,null,null,null,"3092","C3092","Fabricación de bicicletas y de vehículos para personas con discapacidad","3092 - Fabricación de bicicletas y de vehículos para personas con discapacidad"]
[null,null,null,null,null,null,null,null,null,"3099","C3099","Fabricación de otro material de transporte n.c.o.p.","3099 - Fabricación de otro material de transporte n.c.o.p."]
[null,null,null,null,null,null,null,null,null,"3101","C3101","Fabricación de muebles de oficina y de establecimientos comerciales","3101 - Fabricación de muebles de oficina y de establecimientos comerciales"]
[null,null,null,null,null,null,null,null,null,"3102","C3102","Fabricación de muebles de cocina","3102 - Fabricación de muebles de cocina"]
[null,null,null,null,null,null,null,null,null,"3103","C3103","Fabricación de colchones","3103 - Fabricación de colchones"]
[null,null,null,null,null,null,null,null,null,"3109","C3109","Fabricación de otros muebles","3109 - Fabricación de otros muebles"]
[null,null,null,null,null,null,null,null,null,"3211","C3211","Fabricación de monedas","3211 - Fabricación de monedas"]
[null,null,null,null,null,null,null,null,null,"3212","C3212","Fabricación de artículos de joyería y artículos similares","3212 - Fabricación de artículos de joyería y artículos similares"]
[null,null,null,null,null,null,null,null,null,"3213","C3213","Fabricación de artículos de bisutería y artículos similares","3213 - Fabricación de artículos de bisutería y artículos similares"]
[null,null,null,null,null,null,null,null,null,"3220","C3220","Fabricación de instrumentos musicales","3220 - Fabricación de instrumentos musicales"]
[null,null,null,null,null,null,null,null,null,"3230","C3230","Fabricación de artículos de deporte","3230 - Fabricación de artículos de deporte"]
[null,null,null,null,null,null,null,null,null,"3240","C3240","Fabricación de juegos y juguetes","3240 - Fabricación de juegos y juguetes"]
[null,null,null,null,null,null,null,null,null,"3250","C3250","Fabricación de instrumentos y suministros médicos y odontológicos","3250 - Fabricación de instrumentos y suministros médicos y odontológicos"]
[null,null,null,null,null,null,null,null,null,"3291","C3291","Fabricación de escobas, brochas y cepillos","3291 - Fabricación de escobas, brochas y cepillos"]
[null,null,null,null,null,null,null,null,null,"3299","C3299","Otras industrias manufactureras n.c.o.p.","3299 - Otras industrias manufactureras n.c.o.p."]
[null,null,null,null,null,null,null,null,null,"3311","C3311","Reparación de productos metálicos","3311 - Reparación de productos metálicos"]
[null,null,null,null,null,null,null,null,null,"3312","C3312","Reparación de maquinaria","3312 - Reparación de maquinaria"]
[null,null,null,null,null,null,null,null,null,"3313","C3313","Reparación de equipos electrónicos y ópticos","3313 - Reparación de equipos electrónicos y ópticos"]
[null,null,null,null,null,null,null,null,null,"3314","C3314","Reparación de equipos eléctricos","3314 - Reparación de equipos eléctricos"]
[null,null,null,null,null,null,null,null,null,"3315","C3315","Reparación y mantenimiento naval","3315 - Reparación y mantenimiento naval"]
[null,null,null,null,null,null,null,null,null,"3316","C3316","Reparación y mantenimiento aeronáutico y espacial","3316 - Reparación y mantenimiento aeronáutico y espacial"]
[null,null,null,null,null,null,null,null,null,"3317","C3317","Reparación y mantenimiento de otro material de transporte","3317 - Reparación y mantenimiento de otro material de transporte"]
[null,null,null,null,null,null,null,null,null,"3319","C3319","Reparación de otros equipos","3319 - Reparación de otros equipos"]
[null,null,null,null,null,null,null,null,null,"3320","C3320","Instalación de máquinas y equipos industriales","3320 - Instalación de máquinas y equipos industriales"]
[null,null,null,null,null,null,null,null,null,"3512","D3512","Transporte de energía eléctrica","3512 - Transporte de energía eléctrica"]
[null,null,null,null,null,null,null,null,null,"3513","D3513","Distribución de energía eléctrica","3513 - Distribución de energía eléctrica"]
[null,null,null,null,null,null,null,null,null,"3514","D3514","Comercio de energía eléctrica","3514 - Comercio de energía eléctrica"]
[null,null,null,null,null,null,null,null,null,"3515","D3515","Producción de energía hidroeléctrica","3515 - Producción de energía hidroeléctrica"]
[null,null,null,null,null,null,null,null,null,"3516","D3516","Producción de energía eléctrica de origen térmico convencional","3516 - Producción de energía eléctrica de origen térmico convencional"]
[null,null,null,null,null,null,null,null,null,"3517","D3517","Producción de energía eléctrica de origen nuclear","3517 - Producción de energía eléctrica de origen nuclear"]
[null,null,null,null,null,null,null,null,null,"3518","D3518","Producción de energía eléctrica de origen eólico","3518 - Producción de energía eléctrica de origen eólico"]
[null,null,null,null,null,null,null,null,null,"3519","D3519","Producción de energía eléctrica de otros tipos","3519 - Producción de energía eléctrica de otros tipos"]
[null,null,null,null,null,null,null,null,null,"3521","D3521","Producción de gas","3521 - Producción de gas"]
[null,null,null,null,null,null,null,null,null,"3522","D3522","Distribución por tubería de combustibles gaseosos","3522 - Distribución por tubería de combustibles gaseosos"]
[null,null,null,null,null,null,null,null,null,"3523","D3523","Comercio de gas por tubería","3523 - Comercio de gas por tubería"]
[null,null,null,null,null,null,null,null,null,"3530","D3530","Suministro de vapor y aire acondicionado","3530 - Suministro de vapor y aire acondicionado"]
[null,null,null,null,null,null,null,null,null,"3600","E3600","Captación, depuración y distribución de agua","3600 - Captación, depuración y distribución de agua"]
[null,null,null,null,null,null,null,null,null,"3700","E3700","Recogida y tratamiento de aguas residuales","3700 - Recogida y tratamiento de aguas residuales"]
[null,null,null,null,null,null,null,null,null,"3811","E3811","Recogida de residuos no peligrosos","3811 - Recogida de residuos no peligrosos"]
[null,null,null,null,null,null,null,null,null,"3812","E3812","Recogida de residuos peligrosos","3812 - Recogida de residuos peligrosos"]
[null,null,null,null,null,null,null,null,null,"3821","E3821","Tratamiento y eliminación de residuos no peligrosos","3821 - Tratamiento y eliminación de residuos no peligrosos"]
[null,null,null,null,null,null,null,null,null,"3822","E3822","Tratamiento y eliminación de residuos peligrosos","3822 - Tratamiento y eliminación de residuos peligrosos"]
[null,null,null,null,null,null,null,null,null,"3831","E3831","Separación y clasificación de materiales","3831 - Separación y clasificación de materiales"]
[null,null,null,null,null,null,null,null,null,"3832","E3832","Valorización de materiales ya clasificados","3832 - Valorización de materiales ya clasificados"]
[null,null,null,null,null,null,null,null,null,"3900","E3900","Actividades de descontaminación y otros servicios de gestión de residuos","3900 - Actividades de descontaminación y otros servicios de gestión de residuos"]
[null,null,null,null,null,null,null,null,null,"4110","F4110","Promoción inmobiliaria","4110 - Promoción inmobiliaria"]
[null,null,null,null,null,null,null,null,null,"4121","F4121","Construcción de edificios residenciales","4121 - Construcción de edificios residenciales"]
[null,null,null,null,null,null,null,null,null,"4122","F4122","Construcción de edificios no residenciales","4122 - Construcción de edificios no residenciales"]
[null,null,null,null,null,null,null,null,null,"4211","F4211","Construcción de carreteras y autopistas","4211 - Construcción de carreteras y autopistas"]
[null,null,null,null,null,null,null,null,null,"4212","F4212","Construcción de vías férreas de superficie y subterráneas","4212 - Construcción de vías férreas de superficie y subterráneas"]
[null,null,null,null,null,null,null,null,null,"4213","F4213","Construcción de puentes y túneles","4213 - Construcción de puentes y túneles"]
[null,null,null,null,null,null,null,null,null,"4221","F4221","Construcción de redes para fluidos","4221 - Construcción de redes para fluidos"]
[null,null,null,null,null,null,null,null,null,"4222","F4222","Construcción de redes eléctricas y de telecomunicaciones","4222 - Construcción de redes eléctricas y de telecomunicaciones"]
[null,null,null,null,null,null,null,null,null,"4291","F4291","Obras hidráulicas","4291 - Obras hidráulicas"]
[null,null,null,null,null,null,null,null,null,"4299","F4299","Construcción de otros proyectos de ingeniería civil n.c.o.p.","4299 - Construcción de otros proyectos de ingeniería civil n.c.o.p."]
[null,null,null,null,null,null,null,null,null,"4311","F4311","Demolición","4311 - Demolición"]
[null,null,null,null,null,null,null,null,null,"4312","F4312","Preparación de terrenos","4312 - Preparación de terrenos"]
[null,null,null,null,null,null,null,null,null,"4313","F4313","Perforaciones y sondeos","4313 - Perforaciones y sondeos"]
[null,null,null,null,null,null,null,null,null,"4321","F4321","Instalaciones eléctricas",{"$f":"J325 &\" - \" & L325","v":"4321 - Instalaciones eléctricas"}]
[null,null,null,null,null,null,null,null,null,"4322","F4322","Fontanería, instalaciones de sistemas de calefacción y aire acondicionado","4322 - Fontanería, instalaciones de sistemas de calefacción y aire acondicionado"]
[null,null,null,null,null,null,null,null,null,"4329","F4329","Otras instalaciones en obras de construcción","4329 - Otras instalaciones en obras de construcción"]
[null,null,null,null,null,null,null,null,null,"4331","F4331","Revocamiento","4331 - Revocamiento"]
[null,null,null,null,null,null,null,null,null,"4332","F4332","Instalación de carpintería","4332 - Instalación de carpintería"]
[null,null,null,null,null,null,null,null,null,"4333","F4333","Revestimiento de suelos y paredes","4333 - Revestimiento de suelos y paredes"]
[null,null,null,null,null,null,null,null,null,"4334","F4334","Pintura y acristalamiento","4334 - Pintura y acristalamiento"]
[null,null,null,null,null,null,null,null,null,"4339","F4339","Otro acabado de edificios","4339 - Otro acabado de edificios"]
[null,null,null,null,null,null,null,null,null,"4391","F4391","Construcción de cubiertas","4391 - Construcción de cubiertas"]
[null,null,null,null,null,null,null,null,null,"4399","F4399","Otras actividades de construcción especializada n.c.o.p.","4399 - Otras actividades de construcción especializada n.c.o.p."]
[null,null,null,null,null,null,null,null,null,"4511","G4511","Venta de automóviles y vehículos de motor ligeros","4511 - Venta de automóviles y vehículos de motor ligeros"]
[null,null,null,null,null,null,null,null,null,"4519","G4519","Venta de otros vehículos de motor","4519 - Venta de otros vehículos de motor"]
[null,null,null,null,null,null,null,null,null,"4520","G4520","Mantenimiento y reparación de vehículos de motor","4520 - Mantenimiento y reparación de vehículos de motor"]
[null,null,null,null,null,null,null,null,null,"4531","G4531","Comercio al por mayor de repuestos y accesorios de vehículos de motor","4531 - Comercio al por mayor de repuestos y accesorios de vehículos de motor"]
[null,null,null,null,null,null,null,null,null,"4532","G4532","Comercio al por menor de repuestos y accesorios de vehículos de motor","4532 - Comercio al por menor de repuestos y accesorios de vehículos de motor"]
[null,null,null,null,null,null,null,null,null,"4540","G4540","Venta, mantenimiento y reparación de motocicletas y de sus repuestos y accesorios","4540 - Venta, mantenimiento y reparación de motocicletas y de sus repuestos y accesorios"]
[null,null,null,null,null,null,null,null,null,"4611","G4611","Intermediarios del comercio de materias primas agrarias, animales vivos, materias primas textiles y productos semielaborados","4611 - Intermediarios del comercio de materias primas agrarias, animales vivos, materias primas textiles y productos semielaborados"]
[null,null,null,null,null,null,null,null,null,"4612","G4612","Intermediarios del comercio de combustibles, minerales, metales y productos químicos industriales","4612 - Intermediarios del comercio de combustibles, minerales, metales y productos químicos industriales"]
[null,null,null,null,null,null,null,null,null,"4613","G4613","Intermediarios del comercio de la madera y materiales de construcción","4613 - Intermediarios del comercio de la madera y materiales de construcción"]
[null,null,null,null,null,null,null,null,null,"4614","G4614","Intermediarios del comercio de maquinaria, equipo industrial, embarcaciones y aeronaves","4614 - Intermediarios del comercio de maquinaria, equipo industrial, embarcaciones y aeronaves"]
[null,null,null,null,null,null,null,null,null,"4615","G4615","Intermediarios del comercio de muebles, artículos para el hogar y ferretería","4615 - Intermediarios del comercio de muebles, artículos para el hogar y ferretería"]
[null,null,null,null,null,null,null,null,null,"4616","G4616","Intermediarios del comercio de textiles, prendas de vestir, peletería, calzado y artículos de cuero","4616 - Intermediarios del comercio de textiles, prendas de vestir, peletería, calzado y artículos de cuero"]
[null,null,null,null,null,null,null,null,null,"4617","G4617","Intermediarios del comercio de productos alimenticios, bebidas y tabaco","4617 - Intermediarios del comercio de productos alimenticios, bebidas y tabaco"]
[null,null,null,null,null,null,null,null,null,"4618","G4618","Intermediarios del comercio especializados en la venta de otros productos específicos","4618 - Intermediarios del comercio especializados en la venta de otros productos específicos"]
[null,null,null,null,null,null,null,null,null,"4619","G4619","Intermediarios del comercio de productos diversos","4619 - Intermediarios del comercio de productos diversos"]
[null,null,null,null,null,null,null,null,null,"4621","G4621","Comercio al por mayor de cereales, tabaco en rama, simientes y alimentos para animales","4621 - Comercio al por mayor de cereales, tabaco en rama, simientes y alimentos para animales"]
[null,null,null,null,null,null,null,null,null,"4622","G4622","Comercio al por mayor de flores y plantas","4622 - Comercio al por mayor de flores y plantas"]
[null,null,null,null,null,null,null,null,null,"4623","G4623","Comercio al por mayor de animales vivos","4623 - Comercio al por mayor de animales vivos"]
[null,null,null,null,null,null,null,null,null,"4624","G4624","Comercio al por mayor de cueros y pieles","4624 - Comercio al por mayor de cueros y pieles"]
[null,null,null,null,null,null,null,null,null,"4631","G4631","Comercio al por mayor de frutas y hortalizas","4631 - Comercio al por mayor de frutas y hortalizas"]
[null,null,null,null,null,null,null,null,null,"4632","G4632","Comercio al por mayor de carne y productos cárnicos","4632 - Comercio al por mayor de carne y productos cárnicos"]
[null,null,null,null,null,null,null,null,null,"4633","G4633","Comercio al por mayor de productos lácteos, huevos, aceites y grasas comestibles","4633 - Comercio al por mayor de productos lácteos, huevos, aceites y grasas comestibles"]
[null,null,null,null,null,null,null,null,null,"4634","G4634","Comercio al por mayor de bebidas","4634 - Comercio al por mayor de bebidas"]
[null,null,null,null,null,null,null,null,null,"4635","G4635","Comercio al por mayor de productos del tabaco","4635 - Comercio al por mayor de productos del tabaco"]
[null,null,null,null,null,null,null,null,null,"4636","G4636","Comercio al por mayor de azúcar, chocolate y confitería","4636 - Comercio al por mayor de azúcar, chocolate y confitería"]
[null,null,null,null,null,null,null,null,null,"4637","G4637","Comercio al por mayor de café, té, cacao y especias","4637 - Comercio al por mayor de café, té, cacao y especias"]
[null,null,null,null,null,null,null,null,null,"4638","G4638","Comercio al por mayor de pescados y mariscos y otros productos alimenticios","4638 - Comercio al por mayor de pescados y mariscos y otros productos alimenticios"]
[null,null,null,null,null,null,null,null,null,"4639","G4639","Comercio al por mayor, no especializado, de productos alimenticios, bebidas y tabaco","4639 - Comercio al por mayor, no especializado, de productos alimenticios, bebidas y tabaco"]
[null,null,null,null,null,null,null,null,null,"4641","G4641","Comercio al por mayor de textiles","4641 - Comercio al por mayor de textiles"]
[null,null,null,null,null,null,null,null,null,"4642","G4642","Comercio al por mayor de prendas de vestir y calzado","4642 - Comercio al por mayor de prendas de vestir y calzado"]
[null,null,null,null,null,null,null,null,null,"4643","G4643","Comercio al por mayor de aparatos electrodomésticos","4643 - Comercio al por mayor de aparatos electrodomésticos"]
[null,null,null,null,null,null,null,null,null,"4644","G4644","Comercio al por mayor de porcelana, cristalería y artículos de limpieza","4644 - Comercio al por mayor de porcelana, cristalería y artículos de limpieza"]
[null,null,null,null,null,null,null,null,null,"4645","G4645","Comercio al por mayor de productos perfumería y cosmética","4645 - Comercio al por mayor de productos perfumería y cosmética"]
[null,null,null,null,null,null,null,null,null,"4646","G4646","Comercio al por mayor de productos farmacéuticos","4646 - Comercio al por mayor de productos farmacéuticos"]
[null,null,null,null,null,null,null,null,null,"4647","G4647","Comercio al por mayor de muebles, alfombras y aparatos de iluminación","4647 - Comercio al por mayor de muebles, alfombras y aparatos de iluminación"]
[null,null,null,null,null,null,null,null,null,"4648","G4648","Comercio al por mayor de artículos de relojería y joyería","4648 - Comercio al por mayor de artículos de relojería y joyería"]
[null,null,null,null,null,null,null,null,null,"4649","G4649","Comercio al por mayor de otros artículos de uso doméstico","4649 - Comercio al por mayor de otros artículos de uso doméstico"]
[null,null,null,null,null,null,null,null,null,"4651","G4651","Comercio al por mayor de ordenadores, equipos periféricos y programas informáticos","4651 - Comercio al por mayor de ordenadores, equipos periféricos y programas informáticos"]
[null,null,null,null,null,null,null,null,null,"4652","G4652","Comercio al por mayor de equipos electrónicos y de telecomunicaciones y sus componentes","4652 - Comercio al por mayor de equipos electrónicos y de telecomunicaciones y sus componentes"]
[null,null,null,null,null,null,null,null,null,"4661","G4661","Comercio al por mayor de maquinaria, equipos y suministros agrícolas","4661 - Comercio al por mayor de maquinaria, equipos y suministros agrícolas"]
[null,null,null,null,null,null,null,null,null,"4662","G4662","Comercio al por mayor de máquinas herramienta","4662 - Comercio al por mayor de máquinas herramienta"]
[null,null,null,null,null,null,null,null,null,"4663","G4663","Comercio al por mayor de maquinaria para la minería, la construcción y la ingeniería civil","4663 - Comercio al por mayor de maquinaria para la minería, la construcción y la ingeniería civil"]
[null,null,null,null,null,null,null,null,null,"4664","G4664","Comercio al por mayor de maquinaria para la industria textil y de máquinas de coser y tricotar","4664 - Comercio al por mayor de maquinaria para la industria textil y de máquinas de coser y tricotar"]
[null,null,null,null,null,null,null,null,null,"4665","G4665","Comercio al por mayor de muebles de oficina","4665 - Comercio al por mayor de muebles de oficina"]
[null,null,null,null,null,null,null,null,null,"4666","G4666","Comercio al por mayor de otra maquinaria y equipo de oficina","4666 - Comercio al por mayor de otra maquinaria y equipo de oficina"]
[null,null,null,null,null,null,null,null,null,"4669","G4669","Comercio al por mayor de otra maquinaria y equipo","4669 - Comercio al por mayor de otra maquinaria y equipo"]
[null,null,null,null,null,null,null,null,null,"4671","G4671","Comercio al por mayor de combustibles sólidos, líquidos y gaseosos, y productos similares","4671 - Comercio al por mayor de combustibles sólidos, líquidos y gaseosos, y productos similares"]
[null,null,null,null,null,null,null,null,null,"4672","G4672","Comercio al por mayor de metales y minerales metálicos","4672 - Comercio al por mayor de metales y minerales metálicos"]
[null,null,null,null,null,null,null,null,null,"4673","G4673","Comercio al por mayor de madera, materiales de construcción y aparatos sanitarios","4673 - Comercio al por mayor de madera, materiales de construcción y aparatos sanitarios"]
[null,null,null,null,null,null,null,null,null,"4674","G4674","Comercio al por mayor de ferretería, fontanería y calefacción","4674 - Comercio al por mayor de ferretería, fontanería y calefacción"]
[null,null,null,null,null,null,null,null,null,"4675","G4675","Comercio al por mayor de productos químicos","4675 - Comercio al por mayor de productos químicos"]
[null,null,null,null,null,null,null,null,null,"4676","G4676","Comercio al por mayor de otros productos semielaborados","4676 - Comercio al por mayor de otros productos semielaborados"]
[null,null,null,null,null,null,null,null,null,"4677","G4677","Comercio al por mayor de chatarra y productos de desecho","4677 - Comercio al por mayor de chatarra y productos de desecho"]
[null,null,null,null,null,null,null,null,null,"4690","G4690","Comercio al por mayor no especializado","4690 - Comercio al por mayor no especializado"]
[null,null,null,null,null,null,null,null,null,"4711","G4711","Comercio al por menor en establecimientos no especializados, con predominio en productos alimenticios, bebidas y tabaco",{"$f":"J389 &\" - \" & L389","v":"4711 - Comercio al por menor en establecimientos no especializados, con predominio en productos alimenticios, bebidas y tabaco"}]
[null,null,null,null,null,null,null,null,null,"4719","G4719","Otro comercio al por menor en establecimientos no especializados","4719 - Otro comercio al por menor en establecimientos no especializados"]
[null,null,null,null,null,null,null,null,null,"4721","G4721","Comercio al por menor de frutas y hortalizas en establecimientos especializados","4721 - Comercio al por menor de frutas y hortalizas en establecimientos especializados"]
[null,null,null,null,null,null,null,null,null,"4722","G4722","Comercio al por menor de carne y productos cárnicos en establecimientos especializados","4722 - Comercio al por menor de carne y productos cárnicos en establecimientos especializados"]
[null,null,null,null,null,null,null,null,null,"4723","G4723","Comercio al por menor de pescados y mariscos en establecimientos especializados","4723 - Comercio al por menor de pescados y mariscos en establecimientos especializados"]
[null,null,null,null,null,null,null,null,null,"4724","G4724","Comercio al por menor de pan y productos de panadería, confitería y pastelería en establecimientos especializados","4724 - Comercio al por menor de pan y productos de panadería, confitería y pastelería en establecimientos especializados"]
[null,null,null,null,null,null,null,null,null,"4725","G4725","Comercio al por menor de bebidas en establecimientos especializados","4725 - Comercio al por menor de bebidas en establecimientos especializados"]
[null,null,null,null,null,null,null,null,null,"4726","G4726","Comercio al por menor de productos de tabaco en establecimientos especializados","4726 - Comercio al por menor de productos de tabaco en establecimientos especializados"]
[null,null,null,null,null,null,null,null,null,"4729","G4729","Otro comercio al por menor de productos alimenticios en establecimientos especializados","4729 - Otro comercio al por menor de productos alimenticios en establecimientos especializados"]
[null,null,null,null,null,null,null,null,null,"4730","G4730","Comercio al por menor de combustible para la automoción en establecimientos especializados","4730 - Comercio al por menor de combustible para la automoción en establecimientos especializados"]
[null,null,null,null,null,null,null,null,null,"4741","G4741","Comercio al por menor de ordenadores, equipos periféricos y programas informáticos en establecimientos especializados","4741 - Comercio al por menor de ordenadores, equipos periféricos y programas informáticos en establecimientos especializados"]
[null,null,null,null,null,null,null,null,null,"4742","G4742","Comercio al por menor de equipos de telecomunicaciones en establecimientos especializados","4742 - Comercio al por menor de equipos de telecomunicaciones en establecimientos especializados"]
[null,null,null,null,null,null,null,null,null,"4743","G4743","Comercio al por menor de equipos de audio y vídeo en establecimientos especializados","4743 - Comercio al por menor de equipos de audio y vídeo en establecimientos especializados"]
[null,null,null,null,null,null,null,null,null,"4751","G4751","Comercio al por menor de textiles en establecimientos especializados","4751 - Comercio al por menor de textiles en establecimientos especializados"]
[null,null,null,null,null,null,null,null,null,"4752","G4752","Comercio al por menor de ferretería, pintura y vidrio en establecimientos especializados","4752 - Comercio al por menor de ferretería, pintura y vidrio en establecimientos especializados"]
[null,null,null,null,null,null,null,null,null,"4753","G4753","Comercio al por menor de alfombras, moquetas y revestimientos de paredes y suelos en establecimientos especializados","4753 - Comercio al por menor de alfombras, moquetas y revestimientos de paredes y suelos en establecimientos especializados"]
[null,null,null,null,null,null,null,null,null,"4754","G4754","Comercio al por menor de aparatos electrodomésticos en establecimientos especializados","4754 - Comercio al por menor de aparatos electrodomésticos en establecimientos especializados"]
[null,null,null,null,null,null,null,null,null,"4759","G4759","Comercio al por menor de muebles, aparatos de iluminación y otros artículos de uso doméstico en establecimientos especializados","4759 - Comercio al por menor de muebles, aparatos de iluminación y otros artículos de uso doméstico en establecimientos especializados"]
[null,null,null,null,null,null,null,null,null,"4761","G4761","Comercio al por menor de libros en establecimientos especializados","4761 - Comercio al por menor de libros en establecimientos especializados"]
[null,null,null,null,null,null,null,null,null,"4762","G4762","Comercio al por menor de periódicos y artículos de papelería en establecimientos especializados","4762 - Comercio al por menor de periódicos y artículos de papelería en establecimientos especializados"]
[null,null,null,null,null,null,null,null,null,"4763","G4763","Comercio al por menor de grabaciones de música y vídeo en establecimientos especializados","4763 - Comercio al por menor de grabaciones de música y vídeo en establecimientos especializados"]
[null,null,null,null,null,null,null,null,null,"4764","G4764","Comercio al por menor de artículos deportivos en establecimientos especializados","4764 - Comercio al por menor de artículos deportivos en establecimientos especializados"]
[null,null,null,null,null,null,null,null,null,"4765","G4765","Comercio al por menor de juegos y juguetes en establecimientos especializados","4765 - Comercio al por menor de juegos y juguetes en establecimientos especializados"]
[null,null,null,null,null,null,null,null,null,"4771","G4771","Comercio al por menor de prendas de vestir en establecimientos especializados","4771 - Comercio al por menor de prendas de vestir en establecimientos especializados"]
[null,null,null,null,null,null,null,null,null,"4772","G4772","Comercio al por menor de calzado y artículos de cuero en establecimientos especializados","4772 - Comercio al por menor de calzado y artículos de cuero en establecimientos especializados"]
[null,null,null,null,null,null,null,null,null,"4773","G4773","Comercio al por menor de productos farmacéuticos en establecimientos especializados","4773 - Comercio al por menor de productos farmacéuticos en establecimientos especializados"]
[null,null,null,null,null,null,null,null,null,"4774","G4774","Comercio al por menor de artículos médicos y ortopédicos en establecimientos especializados","4774 - Comercio al por menor de artículos médicos y ortopédicos en establecimientos especializados"]
[null,null,null,null,null,null,null,null,null,"4775","G4775","Comercio al por menor de productos cosméticos e higiénicos en establecimientos especializados","4775 - Comercio al por menor de productos cosméticos e higiénicos en establecimientos especializados"]
[null,null,null,null,null,null,null,null,null,"4776","G4776","Comercio al por menor de flores, plantas, semillas, fertilizantes, animales de compañía y alimentos para los mismos en establecimientos especializados","4776 - Comercio al por menor de flores, plantas, semillas, fertilizantes, animales de compañía y alimentos para los mismos en establecimientos especializados"]
[null,null,null,null,null,null,null,null,null,"4777","G4777","Comercio al por menor de artículos de relojería y joyería en establecimientos especializados","4777 - Comercio al por menor de artículos de relojería y joyería en establecimientos especializados"]
[null,null,null,null,null,null,null,null,null,"4778","G4778","Otro comercio al por menor de artículos nuevos en establecimientos especializados","4778 - Otro comercio al por menor de artículos nuevos en establecimientos especializados"]
[null,null,null,null,null,null,null,null,null,"4779","G4779","Comercio al por menor de artículos de segunda mano en establecimientos","4779 - Comercio al por menor de artículos de segunda mano en establecimientos"]
[null,null,null,null,null,null,null,null,null,"4781","G4781","Comercio al por menor de productos alimenticios, bebidas y tabaco en puestos de venta y en mercadillos","4781 - Comercio al por menor de productos alimenticios, bebidas y tabaco en puestos de venta y en mercadillos"]
[null,null,null,null,null,null,null,null,null,"4782","G4782","Comercio al por menor de productos textiles, prendas de vestir y calzado en puestos de venta y en mercadillos","4782 - Comercio al por menor de productos textiles, prendas de vestir y calzado en puestos de venta y en mercadillos"]
[null,null,null,null,null,null,null,null,null,"4789","G4789","Comercio al por menor de otros productos en puestos de venta y en mercadillos","4789 - Comercio al por menor de otros productos en puestos de venta y en mercadillos"]
[null,null,null,null,null,null,null,null,null,"4791","G4791","Comercio al por menor por correspondencia o Internet","4791 - Comercio al por menor por correspondencia o Internet"]
[null,null,null,null,null,null,null,null,null,"4799","G4799","Otro comercio al por menor no realizado ni en establecimientos, ni en puestos de venta ni en mercadillos","4799 - Otro comercio al por menor no realizado ni en establecimientos, ni en puestos de venta ni en mercadillos"]
[null,null,null,null,null,null,null,null,null,"4910","H4910","Transporte interurbano de pasajeros por ferrocarril","4910 - Transporte interurbano de pasajeros por ferrocarril"]
[null,null,null,null,null,null,null,null,null,"4920","H4920","Transporte de mercancías por ferrocarril","4920 - Transporte de mercancías por ferrocarril"]
[null,null,null,null,null,null,null,null,null,"4931","H4931","Transporte terrestre urbano y suburbano de pasajeros","4931 - Transporte terrestre urbano y suburbano de pasajeros"]
[null,null,null,null,null,null,null,null,null,"4932","H4932","Transporte por taxi","4932 - Transporte por taxi"]
[null,null,null,null,null,null,null,null,null,"4939","H4939","tipos de transporte terrestre de pasajeros n.c.o.p.","4939 - tipos de transporte terrestre de pasajeros n.c.o.p."]
[null,null,null,null,null,null,null,null,null,"4941","H4941","Transporte de mercancías por carretera","4941 - Transporte de mercancías por carretera"]
[null,null,null,null,null,null,null,null,null,"4942","H4942","Servicios de mudanza","4942 - Servicios de mudanza"]
[null,null,null,null,null,null,null,null,null,"4950","H4950","Transporte por tubería","4950 - Transporte por tubería"]
[null,null,null,null,null,null,null,null,null,"5010","H5010","Transporte marítimo de pasajeros","5010 - Transporte marítimo de pasajeros"]
[null,null,null,null,null,null,null,null,null,"5020","H5020","Transporte marítimo de mercancías","5020 - Transporte marítimo de mercancías"]
[null,null,null,null,null,null,null,null,null,"5030","H5030","Transporte de pasajeros por vías navegables interiores","5030 - Transporte de pasajeros por vías navegables interiores"]
[null,null,null,null,null,null,null,null,null,"5040","H5040","Transporte de mercancías por vías navegables interiores","5040 - Transporte de mercancías por vías navegables interiores"]
[null,null,null,null,null,null,null,null,null,"5110","H5110","Transporte aéreo de pasajeros","5110 - Transporte aéreo de pasajeros"]
[null,null,null,null,null,null,null,null,null,"5121","H5121","Transporte aéreo de mercancías","5121 - Transporte aéreo de mercancías"]
[null,null,null,null,null,null,null,null,null,"5122","H5122","Transporte espacial","5122 - Transporte espacial"]
[null,null,null,null,null,null,null,null,null,"5210","H5210","Depósito y almacenamiento","5210 - Depósito y almacenamiento"]
[null,null,null,null,null,null,null,null,null,"5221","H5221","Actividades anexas al transporte terrestre","5221 - Actividades anexas al transporte terrestre"]
[null,null,null,null,null,null,null,null,null,"5222","H5222","Actividades anexas al transporte marítimo y por vías navegables interiores","5222 - Actividades anexas al transporte marítimo y por vías navegables interiores"]
[null,null,null,null,null,null,null,null,null,"5223","H5223","Actividades anexas al transporte aéreo","5223 - Actividades anexas al transporte aéreo"]
[null,null,null,null,null,null,null,null,null,"5224","H5224","Manipulación de mercancías","5224 - Manipulación de mercancías"]
[null,null,null,null,null,null,null,null,null,"5229","H5229","Otras actividades anexas al transporte","5229 - Otras actividades anexas al transporte"]
[null,null,null,null,null,null,null,null,null,"5310","H5310","Actividades postales sometidas a la obligación del servicio universal","5310 - Actividades postales sometidas a la obligación del servicio universal"]
[null,null,null,null,null,null,null,null,null,"5320","H5320","Otras actividades postales y de correos","5320 - Otras actividades postales y de correos"]
[null,null,null,null,null,null,null,null,null,"5510","I5510","Hoteles y alojamientos similares","5510 - Hoteles y alojamientos similares"]
[null,null,null,null,null,null,null,null,null,"5520","I5520","Alojamientos turísticos y otros alojamientos de corta estancia","5520 - Alojamientos turísticos y otros alojamientos de corta estancia"]
[null,null,null,null,null,null,null,null,null,"5530","I5530","Campings y aparcamientos para caravanas","5530 - Campings y aparcamientos para caravanas"]
[null,null,null,null,null,null,null,null,null,"5590","I5590","Otros alojamientos","5590 - Otros alojamientos"]
[null,null,null,null,null,null,null,null,null,"5610","I5610","Restaurantes y puestos de comidas",{"$f":"J453 &\" - \" & L453","v":"5610 - Restaurantes y puestos de comidas"}]
[null,null,null,null,null,null,null,null,null,"5621","I5621","Provisión de comidas preparadas para eventos","5621 - Provisión de comidas preparadas para eventos"]
[null,null,null,null,null,null,null,null,null,"5629","I5629","Otros servicios de comidas","5629 - Otros servicios de comidas"]
[null,null,null,null,null,null,null,null,null,"5630","I5630","Establecimientos de bebidas","5630 - Establecimientos de bebidas"]
[null,null,null,null,null,null,null,null,null,"5811","J5811","Edición de libros","5811 - Edición de libros"]
[null,null,null,null,null,null,null,null,null,"5812","J5812","Edición de directorios y guías de direcciones postales","5812 - Edición de directorios y guías de direcciones postales"]
[null,null,null,null,null,null,null,null,null,"5813","J5813","Edición de periódicos","5813 - Edición de periódicos"]
[null,null,null,null,null,null,null,null,null,"5814","J5814","Edición de revistas","5814 - Edición de revistas"]
[null,null,null,null,null,null,null,null,null,"5819","J5819","Otras actividades editoriales","5819 - Otras actividades editoriales"]
[null,null,null,null,null,null,null,null,null,"5821","J5821","Edición de videojuegos","5821 - Edición de videojuegos"]
[null,null,null,null,null,null,null,null,null,"5829","J5829","Edición de otros programas informáticos","5829 - Edición de otros programas informáticos"]
[null,null,null,null,null,null,null,null,null,"5912","J5912","Actividades de postproducción cinematográfica, de vídeo y de programas de televisión","5912 - Actividades de postproducción cinematográfica, de vídeo y de programas de televisión"]
[null,null,null,null,null,null,null,null,null,"5914","J5914","Actividades de exhibición cinematográfica","5914 - Actividades de exhibición cinematográfica"]
[null,null,null,null,null,null,null,null,null,"5915","J5915","Actividades de producción cinematográfica y de vídeo","5915 - Actividades de producción cinematográfica y de vídeo"]
[null,null,null,null,null,null,null,null,null,"5916","J5916","Actividades de producciones de programas de televisión","5916 - Actividades de producciones de programas de televisión"]
[null,null,null,null,null,null,null,null,null,"5917","J5917","Actividades de distribución cinematográfica y de vídeo","5917 - Actividades de distribución cinematográfica y de vídeo"]
[null,null,null,null,null,null,null,null,null,"5918","J5918","Actividades de distribución de programas de televisión","5918 - Actividades de distribución de programas de televisión"]
[null,null,null,null,null,null,null,null,null,"5920","J5920","Actividades de grabación de sonido y edición musical","5920 - Actividades de grabación de sonido y edición musical"]
[null,null,null,null,null,null,null,null,null,"6010","J6010","Actividades de radiodifusión","6010 - Actividades de radiodifusión"]
[null,null,null,null,null,null,null,null,null,"6020","J6020","Actividades de programación y emisión de televisión","6020 - Actividades de programación y emisión de televisión"]
[null,null,null,null,null,null,null,null,null,"6110","J6110","Telecomunicaciones por cable","6110 - Telecomunicaciones por cable"]
[null,null,null,null,null,null,null,null,null,"6120","J6120","Telecomunicaciones inalámbricas","6120 - Telecomunicaciones inalámbricas"]
[null,null,null,null,null,null,null,null,null,"6130","J6130","Telecomunicaciones por satélite","6130 - Telecomunicaciones por satélite"]
[null,null,null,null,null,null,null,null,null,"6190","J6190","Otras actividades de telecomunicaciones","6190 - Otras actividades de telecomunicaciones"]
[null,null,null,null,null,null,null,null,null,"6201","J6201","Actividades de programación informática","6201 - Actividades de programación informática"]
[null,null,null,null,null,null,null,null,null,"6202","J6202","Actividades de consultoría informática","6202 - Actividades de consultoría informática"]
[null,null,null,null,null,null,null,null,null,"6203","J6203","Gestión de recursos informáticos","6203 - Gestión de recursos informáticos"]
[null,null,null,null,null,null,null,null,null,"6209","J6209","Otros servicios relacionados con las tecnologías de la información y la informática","6209 - Otros servicios relacionados con las tecnologías de la información y la informática"]
[null,null,null,null,null,null,null,null,null,"6311","J6311","Proceso de datos, hosting y actividades relacionadas","6311 - Proceso de datos, hosting y actividades relacionadas"]
[null,null,null,null,null,null,null,null,null,"6312","J6312","Portales web","6312 - Portales web"]
[null,null,null,null,null,null,null,null,null,"6391","J6391","Actividades de las agencias de noticias","6391 - Actividades de las agencias de noticias"]
[null,null,null,null,null,null,null,null,null,"6399","J6399","Otros servicios de información n.c.o.p.","6399 - Otros servicios de información n.c.o.p."]
[null,null,null,null,null,null,null,null,null,"6411","K6411","Banco central","6411 - Banco central"]
[null,null,null,null,null,null,null,null,null,"6419","K6419","Otra intermediación monetaria","6419 - Otra intermediación monetaria"]
[null,null,null,null,null,null,null,null,null,"6420","K6420","Actividades de las sociedades holding","6420 - Actividades de las sociedades holding"]
[null,null,null,null,null,null,null,null,null,"6430","K6430","Inversión colectiva, fondos y entidades financieras similares","6430 - Inversión colectiva, fondos y entidades financieras similares"]
[null,null,null,null,null,null,null,null,null,"6491","K6491","Arrendamiento financiero","6491 - Arrendamiento financiero"]
[null,null,null,null,null,null,null,null,null,"6492","K6492","Otras actividades crediticias","6492 - Otras actividades crediticias"]
[null,null,null,null,null,null,null,null,null,"6499","K6499","Otros servicios financieros, excepto seguros y fondos de pensiones n.c.o.p.","6499 - Otros servicios financieros, excepto seguros y fondos de pensiones n.c.o.p."]
[null,null,null,null,null,null,null,null,null,"6511","K6511","Seguros de vida","6511 - Seguros de vida"]
[null,null,null,null,null,null,null,null,null,"6512","K6512","Seguros distintos de los seguros de vida","6512 - Seguros distintos de los seguros de vida"]
[null,null,null,null,null,null,null,null,null,"6520","K6520","Reaseguros","6520 - Reaseguros"]
[null,null,null,null,null,null,null,null,null,"6530","K6530","Fondos de pensiones","6530 - Fondos de pensiones"]
[null,null,null,null,null,null,null,null,null,"6611","K6611","Administración de mercados financieros","6611 - Administración de mercados financieros"]
[null,null,null,null,null,null,null,null,null,"6612","K6612","Actividades de intermediación en operaciones con valores y otros activos","6612 - Actividades de intermediación en operaciones con valores y otros activos"]
[null,null,null,null,null,null,null,null,null,"6619","K6619","Otras actividades auxiliares a los servicios financieros, excepto seguros y fondos de pensiones","6619 - Otras actividades auxiliares a los servicios financieros, excepto seguros y fondos de pensiones"]
[null,null,null,null,null,null,null,null,null,"6621","K6621","Evaluación de riesgos y daños","6621 - Evaluación de riesgos y daños"]
[null,null,null,null,null,null,null,null,null,"6622","K6622","Actividades de agentes y corredores de seguros","6622 - Actividades de agentes y corredores de seguros"]
[null,null,null,null,null,null,null,null,null,"6629","K6629","Otras actividades auxiliares a seguros y fondos de pensiones","6629 - Otras actividades auxiliares a seguros y fondos de pensiones"]
[null,null,null,null,null,null,null,null,null,"6630","K6630","Actividades de gestión de fondos","6630 - Actividades de gestión de fondos"]
[null,null,null,null,null,null,null,null,null,"6810","L6810","Compraventa de bienes inmobiliarios por cuenta propia","6810 - Compraventa de bienes inmobiliarios por cuenta propia"]
[null,null,null,null,null,null,null,null,null,"6820","L6820","Alquiler de bienes inmobiliarios por cuenta propia","6820 - Alquiler de bienes inmobiliarios por cuenta propia"]
[null,null,null,null,null,null,null,null,null,"6831","L6831","Agentes de la propiedad inmobiliaria","6831 - Agentes de la propiedad inmobiliaria"]
[null,null,null,null,null,null,null,null,null,"6832","L6832","Gestión y administración de la propiedad inmobiliaria","6832 - Gestión y administración de la propiedad inmobiliaria"]
[null,null,null,null,null,null,null,null,null,"6910","M6910","Actividades jurídicas","6910 - Actividades jurídicas"]
[null,null,null,null,null,null,null,null,null,"6920","M6920","Actividades de contabilidad, teneduría de libros, auditoría y asesoría fiscal","6920 - Actividades de contabilidad, teneduría de libros, auditoría y asesoría fiscal"]
[null,null,null,null,null,null,null,null,null,"7010","M7010","Actividades de las sedes centrales","7010 - Actividades de las sedes centrales"]
[null,null,null,null,null,null,null,null,null,"7021","M7021","Relaciones públicas y comunicación","7021 - Relaciones públicas y comunicación"]
[null,null,null,null,null,null,null,null,null,"7022","M7022","Otras actividades de consultoría de gestión empresarial","7022 - Otras actividades de consultoría de gestión empresarial"]
[null,null,null,null,null,null,null,null,null,"7111","M7111","Servicios técnicos de arquitectura","7111 - Servicios técnicos de arquitectura"]
[null,null,null,null,null,null,null,null,null,"7112","M7112","Servicios técnicos de ingeniería y otras actividades relacionadas con el asesoramiento técnico","7112 - Servicios técnicos de ingeniería y otras actividades relacionadas con el asesoramiento técnico"]
[null,null,null,null,null,null,null,null,null,"7120","M7120","Ensayos y análisis técnicos","7120 - Ensayos y análisis técnicos"]
[null,null,null,null,null,null,null,null,null,"7211","M7211","Investigación y desarrollo experimental en biotecnología","7211 - Investigación y desarrollo experimental en biotecnología"]
[null,null,null,null,null,null,null,null,null,"7219","M7219","Otra investigación y desarrollo experimental en ciencias naturales y técnicas","7219 - Otra investigación y desarrollo experimental en ciencias naturales y técnicas"]
[null,null,null,null,null,null,null,null,null,"7220","M7220","Investigación y desarrollo experimental en ciencias sociales y humanidades",{"$f":"J517 &\" - \" & L517","v":"7220 - Investigación y desarrollo experimental en ciencias sociales y humanidades"}]
[null,null,null,null,null,null,null,null,null,"7311","M7311","Agencias de publicidad","7311 - Agencias de publicidad"]
[null,null,null,null,null,null,null,null,null,"7312","M7312","Servicios de representación de medios de comunicación","7312 - Servicios de representación de medios de comunicación"]
[null,null,null,null,null,null,null,null,null,"7320","M7320","Estudio de mercado y realización de encuestas de opinión pública","7320 - Estudio de mercado y realización de encuestas de opinión pública"]
[null,null,null,null,null,null,null,null,null,"7410","M7410","Actividades de diseño especializado","7410 - Actividades de diseño especializado"]
[null,null,null,null,null,null,null,null,null,"7420","M7420","Actividades de fotografía","7420 - Actividades de fotografía"]
[null,null,null,null,null,null,null,null,null,"7430","M7430","Actividades de traducción e interpretación","7430 - Actividades de traducción e interpretación"]
[null,null,null,null,null,null,null,null,null,"7490","M7490","Otras actividades profesionales, científicas y técnicas n.c.o.p.","7490 - Otras actividades profesionales, científicas y técnicas n.c.o.p."]
[null,null,null,null,null,null,null,null,null,"7500","M7500","Actividades veterinarias","7500 - Actividades veterinarias"]
[null,null,null,null,null,null,null,null,null,"7711","N7711","Alquiler de automóviles y vehículos de motor ligeros","7711 - Alquiler de automóviles y vehículos de motor ligeros"]
[null,null,null,null,null,null,null,null,null,"7712","N7712","Alquiler de camiones","7712 - Alquiler de camiones"]
[null,null,null,null,null,null,null,null,null,"7721","N7721","Alquiler de artículos de ocio y deportivos","7721 - Alquiler de artículos de ocio y deportivos"]
[null,null,null,null,null,null,null,null,null,"7722","N7722","Alquiler de cintas de vídeo y discos","7722 - Alquiler de cintas de vídeo y discos"]
[null,null,null,null,null,null,null,null,null,"7729","N7729","Alquiler de otros efectos personales y artículos de uso doméstico","7729 - Alquiler de otros efectos personales y artículos de uso doméstico"]
[null,null,null,null,null,null,null,null,null,"7731","N7731","Alquiler de maquinaria y equipo de uso agrícola","7731 - Alquiler de maquinaria y equipo de uso agrícola"]
[null,null,null,null,null,null,null,null,null,"7732","N7732","Alquiler de maquinaria y equipo para la construcción e ingeniería civil","7732 - Alquiler de maquinaria y equipo para la construcción e ingeniería civil"]
[null,null,null,null,null,null,null,null,null,"7733","N7733","Alquiler de maquinaria y equipo de oficina, incluidos ordenadores","7733 - Alquiler de maquinaria y equipo de oficina, incluidos ordenadores"]
[null,null,null,null,null,null,null,null,null,"7734","N7734","Alquiler de medios de navegación","7734 - Alquiler de medios de navegación"]
[null,null,null,null,null,null,null,null,null,"7735","N7735","Alquiler de medios de transporte aéreo","7735 - Alquiler de medios de transporte aéreo"]
[null,null,null,null,null,null,null,null,null,"7739","N7739","Alquiler de otra maquinaria, equipos y bienes tangibles n.c.o.p.","7739 - Alquiler de otra maquinaria, equipos y bienes tangibles n.c.o.p."]
[null,null,null,null,null,null,null,null,null,"7740","N7740","Arrendamiento de la propiedad intelectual y productos similares, excepto trabajos protegidos por los derechos de autor","7740 - Arrendamiento de la propiedad intelectual y productos similares, excepto trabajos protegidos por los derechos de autor"]
[null,null,null,null,null,null,null,null,null,"7810","N7810","Actividades de las agencias de colocación","7810 - Actividades de las agencias de colocación"]
[null,null,null,null,null,null,null,null,null,"7820","N7820","Actividades de las empresas de trabajo temporal","7820 - Actividades de las empresas de trabajo temporal"]
[null,null,null,null,null,null,null,null,null,"7830","N7830","Otra provisión de recursos humanos","7830 - Otra provisión de recursos humanos"]
[null,null,null,null,null,null,null,null,null,"7911","N7911","Actividades de las agencias de viajes","7911 - Actividades de las agencias de viajes"]
[null,null,null,null,null,null,null,null,null,"7912","N7912","Actividades de los operadores turísticos","7912 - Actividades de los operadores turísticos"]
[null,null,null,null,null,null,null,null,null,"7990","N7990","Otros servicios de reservas y actividades relacionadas con los mismos","7990 - Otros servicios de reservas y actividades relacionadas con los mismos"]
[null,null,null,null,null,null,null,null,null,"8010","N8010","Actividades de seguridad privada","8010 - Actividades de seguridad privada"]
[null,null,null,null,null,null,null,null,null,"8020","N8020","Servicios de sistemas de seguridad","8020 - Servicios de sistemas de seguridad"]
[null,null,null,null,null,null,null,null,null,"8030","N8030","Actividades de investigación","8030 - Actividades de investigación"]
[null,null,null,null,null,null,null,null,null,"8110","N8110","Servicios integrales a edificios e instalaciones","8110 - Servicios integrales a edificios e instalaciones"]
[null,null,null,null,null,null,null,null,null,"8121","N8121","Limpieza general de edificios","8121 - Limpieza general de edificios"]
[null,null,null,null,null,null,null,null,null,"8122","N8122","Otras actividades de limpieza industrial y de edificios","8122 - Otras actividades de limpieza industrial y de edificios"]
[null,null,null,null,null,null,null,null,null,"8129","N8129","Otras actividades de limpieza","8129 - Otras actividades de limpieza"]
[null,null,null,null,null,null,null,null,null,"8130","N8130","Actividades de jardinería","8130 - Actividades de jardinería"]
[null,null,null,null,null,null,null,null,null,"8211","N8211","Servicios administrativos combinados","8211 - Servicios administrativos combinados"]
[null,null,null,null,null,null,null,null,null,"8219","N8219","Actividades de fotocopiado, preparación de documentos y otras actividades especializadas de oficina","8219 - Actividades de fotocopiado, preparación de documentos y otras actividades especializadas de oficina"]
[null,null,null,null,null,null,null,null,null,"8220","N8220","Actividades de los centros de llamadas","8220 - Actividades de los centros de llamadas"]
[null,null,null,null,null,null,null,null,null,"8230","N8230","Organización de convenciones y ferias de muestras","8230 - Organización de convenciones y ferias de muestras"]
[null,null,null,null,null,null,null,null,null,"8291","N8291","Actividades de las agencias de cobros y de información comercial","8291 - Actividades de las agencias de cobros y de información comercial"]
[null,null,null,null,null,null,null,null,null,"8292","N8292","Actividades de envasado y empaquetado","8292 - Actividades de envasado y empaquetado"]
[null,null,null,null,null,null,null,null,null,"8299","N8299","Otras actividades de apoyo a las empresas n.c.o.p.","8299 - Otras actividades de apoyo a las empresas n.c.o.p."]
[null,null,null,null,null,null,null,null,null,"8411","O8411","Actividades generales de la Administración Pública","8411 - Actividades generales de la Administración Pública"]
[null,null,null,null,null,null,null,null,null,"8412","O8412","Regulación de las actividades sanitarias, educativas y culturales y otros servicios sociales, excepto Seguridad Social","8412 - Regulación de las actividades sanitarias, educativas y culturales y otros servicios sociales, excepto Seguridad Social"]
[null,null,null,null,null,null,null,null,null,"8413","O8413","Regulación de la actividad económica y contribución a su mayor eficiencia","8413 - Regulación de la actividad económica y contribución a su mayor eficiencia"]
[null,null,null,null,null,null,null,null,null,"8421","O8421","Asuntos exteriores","8421 - Asuntos exteriores"]
[null,null,null,null,null,null,null,null,null,"8422","O8422","Defensa","8422 - Defensa"]
[null,null,null,null,null,null,null,null,null,"8423","O8423","Justicia","8423 - Justicia"]
[null,null,null,null,null,null,null,null,null,"8424","O8424","Orden público y seguridad","8424 - Orden público y seguridad"]
[null,null,null,null,null,null,null,null,null,"8425","O8425","Protección civil","8425 - Protección civil"]
[null,null,null,null,null,null,null,null,null,"8430","O8430","Seguridad Social obligatoria","8430 - Seguridad Social obligatoria"]
[null,null,null,null,null,null,null,null,null,"8510","P8510","Educación preprimaria","8510 - Educación preprimaria"]
[null,null,null,null,null,null,null,null,null,"8520","P8520","Educación primaria","8520 - Educación primaria"]
[null,null,null,null,null,null,null,null,null,"8531","P8531","Educación secundaria general","8531 - Educación secundaria general"]
[null,null,null,null,null,null,null,null,null,"8532","P8532","Educación secundaria técnica y profesional","8532 - Educación secundaria técnica y profesional"]
[null,null,null,null,null,null,null,null,null,"8541","P8541","Educación postsecundaria no terciaria","8541 - Educación postsecundaria no terciaria"]
[null,null,null,null,null,null,null,null,null,"8543","P8543","Educación universitaria","8543 - Educación universitaria"]
[null,null,null,null,null,null,null,null,null,"8544","P8544","Educación terciaria no universitaria","8544 - Educación terciaria no universitaria"]
[null,null,null,null,null,null,null,null,null,"8551","P8551","Educación deportiva y recreativa","8551 - Educación deportiva y recreativa"]
[null,null,null,null,null,null,null,null,null,"8552","P8552","Educación cultural","8552 - Educación cultural"]
[null,null,null,null,null,null,null,null,null,"8553","P8553","Actividades de las escuelas de conducción y pilotaje","8553 - Actividades de las escuelas de conducción y pilotaje"]
[null,null,null,null,null,null,null,null,null,"8559","P8559","Otra educación n.c.o.p.","8559 - Otra educación n.c.o.p."]
[null,null,null,null,null,null,null,null,null,"8560","P8560","Actividades auxiliares a la educación","8560 - Actividades auxiliares a la educación"]
[null,null,null,null,null,null,null,null,null,"8610","Q8610","Actividades hospitalarias","8610 - Actividades hospitalarias"]
[null,null,null,null,null,null,null,null,null,"8621","Q8621","Actividades de medicina general",{"$f":"J581 &\" - \" & L581","v":"8621 - Actividades de medicina general"}]
[null,null,null,null,null,null,null,null,null,"8622","Q8622","Actividades de medicina especializada","8622 - Actividades de medicina especializada"]
[null,null,null,null,null,null,null,null,null,"8623","Q8623","Actividades odontológicas","8623 - Actividades odontológicas"]
[null,null,null,null,null,null,null,null,null,"8690","Q8690","Otras actividades sanitarias","8690 - Otras actividades sanitarias"]
[null,null,null,null,null,null,null,null,null,"8710","Q8710","Asistencia en establecimientos residenciales con cuidados sanitarios","8710 - Asistencia en establecimientos residenciales con cuidados sanitarios"]
[null,null,null,null,null,null,null,null,null,"8720","Q8720","Asistencia en establecimientos residenciales para personas con discapacidad intelectual, enfermedad mental y drogodependencia","8720 - Asistencia en establecimientos residenciales para personas con discapacidad intelectual, enfermedad mental y drogodependencia"]
[null,null,null,null,null,null,null,null,null,"8731","Q8731","Asistencia en establecimientos residenciales para personas mayores","8731 - Asistencia en establecimientos residenciales para personas mayores"]
[null,null,null,null,null,null,null,null,null,"8732","Q8732","Asistencia en establecimientos residenciales para personas con discapacidad física","8732 - Asistencia en establecimientos residenciales para personas con discapacidad física"]
[null,null,null,null,null,null,null,null,null,"8790","Q8790","Otras actividades de asistencia en establecimientos residenciales","8790 - Otras actividades de asistencia en establecimientos residenciales"]
[null,null,null,null,null,null,null,null,null,"8811","Q8811","Actividades de servicios sociales sin alojamiento para personas mayores","8811 - Actividades de servicios sociales sin alojamiento para personas mayores"]
[null,null,null,null,null,null,null,null,null,"8812","Q8812","Actividades de servicios sociales sin alojamiento para personas con discapacidad","8812 - Actividades de servicios sociales sin alojamiento para personas con discapacidad"]
[null,null,null,null,null,null,null,null,null,"8891","Q8891","Actividades de cuidado diurno de niños","8891 - Actividades de cuidado diurno de niños"]
[null,null,null,null,null,null,null,null,null,"8899","Q8899","Otros actividades de servicios sociales sin alojamiento n.c.o.p.","8899 - Otros actividades de servicios sociales sin alojamiento n.c.o.p."]
[null,null,null,null,null,null,null,null,null,"9001","R9001","Artes escénicas","9001 - Artes escénicas"]
[null,null,null,null,null,null,null,null,null,"9002","R9002","Actividades auxiliares a las artes escénicas","9002 - Actividades auxiliares a las artes escénicas"]
[null,null,null,null,null,null,null,null,null,"9003","R9003","Creación artística y literaria","9003 - Creación artística y literaria"]
[null,null,null,null,null,null,null,null,null,"9004","R9004","Gestión de salas de espectáculos","9004 - Gestión de salas de espectáculos"]
[null,null,null,null,null,null,null,null,null,"9102","R9102","Actividades de museos","9102 - Actividades de museos"]
[null,null,null,null,null,null,null,null,null,"9103","R9103","Gestión de lugares y edificios históricos","9103 - Gestión de lugares y edificios históricos"]
[null,null,null,null,null,null,null,null,null,"9104","R9104","Actividades de los jardines botánicos, parques zoológicos y reservas naturales","9104 - Actividades de los jardines botánicos, parques zoológicos y reservas naturales"]
[null,null,null,null,null,null,null,null,null,"9105","R9105","Actividades de bibliotecas","9105 - Actividades de bibliotecas"]
[null,null,null,null,null,null,null,null,null,"9106","R9106","Actividades de archivos","9106 - Actividades de archivos"]
[null,null,null,null,null,null,null,null,null,"9200","R9200","Actividades de juegos de azar y apuestas","9200 - Actividades de juegos de azar y apuestas"]
[null,null,null,null,null,null,null,null,null,"9311","R9311","Gestión de instalaciones deportivas","9311 - Gestión de instalaciones deportivas"]
[null,null,null,null,null,null,null,null,null,"9312","R9312","Actividades de los clubes deportivos","9312 - Actividades de los clubes deportivos"]
[null,null,null,null,null,null,null,null,null,"9313","R9313","Actividades de los gimnasios","9313 - Actividades de los gimnasios"]
[null,null,null,null,null,null,null,null,null,"9319","R9319","Otras actividades deportivas","9319 - Otras actividades deportivas"]
[null,null,null,null,null,null,null,null,null,"9321","R9321","Actividades de los parques de atracciones y los parques temáticos","9321 - Actividades de los parques de atracciones y los parques temáticos"]
[null,null,null,null,null,null,null,null,null,"9329","R9329","Otras actividades recreativas y de entretenimiento","9329 - Otras actividades recreativas y de entretenimiento"]
[null,null,null,null,null,null,null,null,null,"9411","S9411","Actividades de organizaciones empresariales y patronales","9411 - Actividades de organizaciones empresariales y patronales"]
[null,null,null,null,null,null,null,null,null,"9412","S9412","Actividades de organizaciones profesionales","9412 - Actividades de organizaciones profesionales"]
[null,null,null,null,null,null,null,null,null,"9420","S9420","Actividades sindicales","9420 - Actividades sindicales"]
[null,null,null,null,null,null,null,null,null,"9491","S9491","Actividades de organizaciones religiosas","9491 - Actividades de organizaciones religiosas"]
[null,null,null,null,null,null,null,null,null,"9492","S9492","Actividades de organizaciones políticas","9492 - Actividades de organizaciones políticas"]
[null,null,null,null,null,null,null,null,null,"9499","S9499","Otras actividades asociativas n.c.o.p.","9499 - Otras actividades asociativas n.c.o.p."]
[null,null,null,null,null,null,null,null,null,"9511","S9511","Reparación de ordenadores y equipos periféricos","9511 - Reparación de ordenadores y equipos periféricos"]
[null,null,null,null,null,null,null,null,null,"9512","S9512","Reparación de equipos de comunicación","9512 - Reparación de equipos de comunicación"]
[null,null,null,null,null,null,null,null,null,"9521","S9521","Reparación de aparatos electrónicos de audio y vídeo de uso doméstico","9521 - Reparación de aparatos electrónicos de audio y vídeo de uso doméstico"]
[null,null,null,null,null,null,null,null,null,"9522","S9522","Reparación de aparatos electrodomésticos y de equipos para el hogar y el jardín","9522 - Reparación de aparatos electrodomésticos y de equipos para el hogar y el jardín"]
[null,null,null,null,null,null,null,null,null,"9523","S9523","Reparación de calzado y artículos de cuero","9523 - Reparación de calzado y artículos de cuero"]
[null,null,null,null,null,null,null,null,null,"9524","S9524","Reparación de muebles y artículos de menaje","9524 - Reparación de muebles y artículos de menaje"]
[null,null,null,null,null,null,null,null,null,"9525","S9525","Reparación de relojes y joyería","9525 - Reparación de relojes y joyería"]
[null,null,null,null,null,null,null,null,null,"9529","S9529","Reparación de otros efectos personales y artículos de uso doméstico","9529 - Reparación de otros efectos personales y artículos de uso doméstico"]
[null,null,null,null,null,null,null,null,null,"9601","S9601","Lavado y limpieza de prendas textiles y de piel","9601 - Lavado y limpieza de prendas textiles y de piel"]
[null,null,null,null,null,null,null,null,null,"9602","S9602","Peluquería y otros tratamientos de belleza","9602 - Peluquería y otros tratamientos de belleza"]
[null,null,null,null,null,null,null,null,null,"9603","S9603","Pompas fúnebres y actividades relacionadas","9603 - Pompas fúnebres y actividades relacionadas"]
[null,null,null,null,null,null,null,null,null,"9604","S9604","Actividades de mantenimiento físico","9604 - Actividades de mantenimiento físico"]
[null,null,null,null,null,null,null,null,null,"9609","S9609","Otras servicios personales n.c.o.p.","9609 - Otras servicios personales n.c.o.p."]
[null,null,null,null,null,null,null,null,null,"9700","T9700","Actividades de los hogares como empleadores de personal doméstico","9700 - Actividades de los hogares como empleadores de personal doméstico"]
[null,null,null,null,null,null,null,null,null,"9810","T9810","Actividades de los hogares como productores de bienes para uso propio","9810 - Actividades de los hogares como productores de bienes para uso propio"]
[null,null,null,null,null,null,null,null,null,"9820","T9820","Actividades de los hogares como productores de servicios para uso propio","9820 - Actividades de los hogares como productores de servicios para uso propio"]
[null,null,null,null,null,null,null,null,null,"9900","U9900","Actividades de organizaciones y organismos extraterritoriales","9900 - Actividades de organizaciones y organismos extraterritoriales"]

{"sheet":"Hoja2","index":7,"n_rows":273,"n_cols":2,"rows_kept":273,"cut":false,"hidden":true,"merged":[]}
[null,"(Nombre del Municipio)"]
["31001","Abáigar"]
["31002","Abárzuza/Abartzuza"]
["31003","Abaurregaina/Abaurrea Alta"]
["31004","Abaurrepea/Abaurrea Baja"]
["31005","Aberin"]
["31006","Ablitas"]
["31007","Adiós"]
["31008","Aguilar de Codés"]
["31009","Aibar/Oibar"]
["31011","Allín/Allin"]
["31012","Allo"]
["31010","Altsasu/Alsasua"]
["31013","Améscoa Baja"]
["31014","Ancín/Antzin"]
["31015","Andosilla"]
["31016","Ansoáin/Antsoain"]
["31017","Anue"]
["31018","Añorbe"]
["31019","Aoiz/Agoitz"]
["31020","Araitz"]
["31025","Arakil"]
["31021","Aranarache/Aranaratxe"]
["31023","Aranguren"]
["31024","Arano"]
["31022","Arantza"]
["31026","Aras"]
["31027","Arbizu"]
["31028","Arce/Artzi"]
["31029","Los Arcos"]
["31030","Arellano"]
["31031","Areso"]
["31032","Arguedas"]
["31033","Aria"]
["31034","Aribe"]
["31035","Armañanzas"]
["31036","Arróniz"]
["31037","Arruazu"]
["31038","Artajona"]
["31039","Artazu"]
["31040","Atetz/Atez"]
["31058","Auritz/Burguete"]
["31041","Ayegui/Aiegi"]
["31042","Azagra"]
["31043","Azuelo"]
["31044","Bakaiku"]
["31901","Barañain "]
["31045","Barásoain"]
["31046","Barbarin"]
["31047","Bargota"]
["31048","Barillas"]
["31049","Basaburua"]
["31050","Baztan"]
["31137","Beintza-Labaien"]
["31051","Beire"]
["31052","Belascoáin"]
["31250","Bera"]
["31053","Berbinzana"]
["31905","Beriáin"]
["31902","Berrioplano/Berriobeiti"]
["31903","Berriozar"]
["31054","Bertizarana"]
["31055","Betelu"]
["31253","Bidaurreta"]
["31056","Biurrun-Olcoz"]
["31057","Buñuel"]
["31059","Burgui/Burgi"]
["31060","Burlada/Burlata"]
["31061","El Busto "]
["31062","Cabanillas"]
["31063","Cabredo"]
["31064","Cadreita"]
["31065","Caparroso"]
["31066","Cárcar"]
["31067","Carcastillo"]
["31068","Cascante"]
["31069","Cáseda"]
["31070","Castejón"]
["31071","Castillonuevo"]
["31193","Cendea de Olza/Oltza Zendea"]
["31072","Cintruénigo"]
["31074","Cirauqui/Zirauki"]
["31075","Ciriza/Ziritza"]
["31076","Cizur"]
["31077","Corella"]
["31078","Cortes"]
["31079","Desojo"]
["31080","Dicastillo"]
["31081","Donamaria"]
["31221","Doneztebe/Santesteban"]
["31083","Echarri/Etxarri"]
["31086","Valle de Egüés/Eguesibar"]
["31087","Elgorriaga"]
["31089","Enériz/Eneritz"]
["31090","Eratsun"]
["31091","Ergoiena"]
["31092","Erro"]
["31094","Eslava"]
["31095","Esparza de Salazar/Espartza Zaraitzu"]
["31096","Espronceda"]
["31097","Estella-Lizarra"]
["31098","Esteribar"]
["31099","Etayo"]
["31082","Etxalar"]
["31084","Etxarri Aranatz"]
["31085","Etxauri"]
["31100","Eulate"]
["31101","Ezcabarte"]
["31093","Ezcároz/Ezkaroze"]
["31102","Ezkurra"]
["31103","Ezprogui"]
["31104","Falces"]
["31105","Fitero"]
["31106","Fontellas"]
["31107","Funes"]
["31108","Fustiñana"]
["31109","Galar"]
["31110","Gallipienzo/Galipentzu"]
["31111","Gallués/Galoze"]
["31112","Garaioa"]
["31113","Garde"]
["31114","Garínoain"]
["31115","Garralda"]
["31116","Genevilla"]
["31117","Goizueta"]
["31118","Goñi"]
["31119","Güesa/Gorza"]
["31120","Guesálaz/Gesalatz"]
["31121","Guirguillano"]
["31256","Hiriberri/Villanueva de Aezkoa"]
["31122","Huarte/Uharte"]
["31124","Ibargoiti"]
["31259","Igantzi"]
["31125","Igúzquiza"]
["31126","Imotz"]
["31127","Irañeta"]
["31904","Irurtzun"]
["31128","Isaba/Izaba"]
["31129","Ituren"]
["31130","Iturmendi"]
["31131","Iza/Itza"]
["31132","Izagaondoa"]
["31133","Izalzu/Itzaltzu"]
["31134","Jaurrieta"]
["31135","Javier"]
["31136","Juslapeña"]
["31138","Lakuntza"]
["31139","Lana"]
["31140","Lantz"]
["31141","Lapoblación"]
["31142","Larraga"]
["31143","Larraona"]
["31144","Larraun"]
["31145","Lazagurría"]
["31146","Leache/Leatxe"]
["31147","Legarda"]
["31148","Legaria"]
["31149","Leitza"]
["31908","Lekunberri"]
["31150","Leoz/Leotz"]
["31151","Lerga"]
["31152","Lerín"]
["31153","Lesaka"]
["31154","Lezáun"]
["31155","Liédena"]
["31156","Lizoain-Arriasgoiti/Lizoain-Arriasgoiti"]
["31157","Lodosa"]
["31158","Lónguida/Longida"]
["31159","Lumbier"]
["31160","Luquin"]
["31248","Luzaide/Valcarlos"]
["31161","Mañeru"]
["31162","Marañón"]
["31163","Marcilla"]
["31164","Mélida"]
["31165","Mendavia"]
["31166","Mendaza"]
["31167","Mendigorría"]
["31168","Metauten"]
["31169","Milagro"]
["31170","Mirafuentes"]
["31171","Miranda de Arga"]
["31172","Monreal/Elo"]
["31173","Monteagudo"]
["31174","Morentin"]
["31175","Mues"]
["31176","Murchante"]
["31177","Murieta"]
["31178","Murillo el Cuende"]
["31179","Murillo el Fruto"]
["31180","Muruzábal"]
["31181","Navascués/Nabaskoze"]
["31182","Nazar"]
["31088","Noáin (Valle de Elorz)/Noain (Elortzibar)"]
["31183","Obanos"]
["31185","Ochagavía/Otsagabia"]
["31184","Oco"]
["31186","Odieta"]
["31187","Oitz"]
["31188","Oláibar"]
["31189","Olazti/Olazagutía"]
["31190","Olejua"]
["31191","Olite/Erriberri"]
["31194","Valle de Ollo/Ollaran"]
["31192","Olóriz/Oloritz"]
["31195","Orbaitzeta"]
["31196","Orbara"]
["31197","Orísoain"]
["31906","Orkoien"]
["31198","Oronz/Orontze"]
["31199","Oroz-Betelu/Orotz-Betelu"]
["31211","Orreaga/Roncesvalles"]
["31200","Oteiza"]
["31201","Pamplona/Iruña"]
["31202","Peralta/Azkoien"]
["31203","Petilla de Aragón"]
["31204","Piedramillera"]
["31205","Pitillas"]
["31206","Puente la Reina/Gares"]
["31207","Pueyo"]
["31208","Ribaforada"]
["31209","Romanzado"]
["31210","Roncal/Erronkari"]
["31212","Sada"]
["31213","Saldías"]
["31214","Salinas de Oro/Jaitz"]
["31215","San Adrián"]
["31217","San Martín de Unx"]
["31216","Sangüesa/Zangoza"]
["31219","Sansol"]
["31220","Santacara"]
["31222","Sarriés/Sartze"]
["31223","Sartaguda"]
["31224","Sesma"]
["31225","Sorlada"]
["31226","Sunbilla"]
["31227","Tafalla"]
["31228","Tiebas-Muruarte de Reta"]
["31229","Tirapu"]
["31230","Torralba del Río"]
["31231","Torres del Río"]
["31232","Tudela"]
["31233","Tulebras"]
["31234","Ucar"]
["31123","Uharte Arakil"]
["31235","Ujué/Uxue"]
["31236","Ultzama"]
["31237","Unciti"]
["31238","Unzué/Untzue"]
["31239","Urdazubi/Urdax"]
["31240","Urdiain"]
["31241","Urraul Alto"]
["31242","Urraul Bajo"]
["31244","Urroz"]
["31243","Urroz-Villa"]
["31245","Urzainqui/Urzainki"]
["31246","Uterga"]
["31247","Uztárroz/Uztarroze"]
["31260","Valle de Yerri/Deierri"]
["31249","Valtierra"]
["31251","Viana"]
["31252","Vidángoz/Bidankoze"]
["31254","Villafranca"]
["31255","Villamayor de Monjardín"]
["31257","Villatuerta"]
["31258","Villava/Atarrabia"]
["31261","Yesa"]
["31262","Zabalza/Zabaltza"]
["31073","Ziordia"]
["31907","Zizur Mayor/Zizur Nagusia"]
["31263","Zubieta"]
["31264","Zugarramurdi"]
["31265","Zúñiga"]